Cogmind - Beta 10 @@@ ROGUE MODE // 2020.09.15 @ 09:13:26 // Winter2019/RPGLIKE Player: Torako Result: Destroyed by EQ-061 with Graviton Cannon Performance ------------- Evolutions (9) 4500 Regions Visited (35) 7000 Robots Destroyed (460) 2300 Value Destroyed (26241) 26241 Prototype IDs (254) 5080 Alien Tech Used (5) 1000 Bonus (31461) 31461 TOTAL SCORE: 77582 Bonus ------- High Alert Combat Kills 4493 Follower Combat Kills 1246 Entered Garrisons 800 Used RIF Installer 2000 Network Hubs Disabled 600 Aligned with FarCom 300 Met Data Miner 300 Used Data Conduit 3000 Met Zhirov 300 Built Enhanced Grunts 300 A7 Reached Mainframe 300 Met R17 at Cetus 500 Found Hidden Lab 3000 Decrypted A0 Command 3000 Met R17 at Research 2000 Pursued by Intercept 1500 Destroyed MAIN.C Guards 500 Met MAIN.C 5000 Destroyed MAIN.C Shell 5000 Friendly Fire -2678 Cogmind --------- Core Integrity 0/1900 Matter 210/300 Energy 590/590 System Corruption 10% Temperature Cool (0) Movement Treading (160) Location -1/Command Parts ------- > --- POWER (3) -------- Graviton Reactor Improved Quantum Reactor > --- PROPULSION (6) --- Enhanced Armored Heavy Treads High-density Centrium Heavy Treads Nuclear Pulse Thruster Impulse Thruster > --- UTILITY (8) ------ Experimental Targeting Computer Experimental Target Analyzer Advanced Core Analyzer Advanced Armor Integrity Analyzer Centrium Medium Armor Plating EM Dispersion Field > --- WEAPON (9) ------- Warp Cannon Enhanced Autogun Enhanced Autogun Enhanced Autogun Enhanced Autogun Enhanced Autogun Hypervelocity Multirail > --- INVENTORY (4) ---- YI-UF0's Bottomless Matter Pit (1385) Transdimensional Reconstructor Helical Railgun Guided Remote Datajack Peak State ------------ > --- POWER ------------ Graviton Reactor Improved Quantum Reactor > --- PROPULSION ------- Enhanced Armored Heavy Treads High-density Centrium Heavy Treads Nuclear Pulse Thruster Impulse Thruster > --- UTILITY ---------- Experimental Energy Well Spectral Analyzer Experimental Targeting Computer Experimental Target Analyzer Advanced Core Analyzer Advanced Armor Integrity Analyzer Precision Matter Filter EM Dispersion Field > --- WEAPON ----------- Warp Cannon Enhanced Autogun Enhanced Autogun Enhanced Autogun Enhanced Autogun Enhanced Autogun Enhanced Autogun Hypervelocity Multirail Hypervelocity Multirail > --- INVENTORY -------- YI-UF0's Bottomless Matter Pit Transdimensional Reconstructor Helical Railgun Guided Remote Datajack [Rating: 198] Favorites ----------- Power Micro Nuclear Core Engine Light Ion Engine Power Core Micro Nuclear Core Reactor Quantum Reactor Propulsion Improved VTOL Module Treads Enhanced Armored Heavy Treads Leg Advanced Myomer Leg Wheel Wheel Hover Unit Hover Unit Flight Unit Improved VTOL Module Utility Gravity Neutralizing Apparatus Device Gravity Neutralizing Apparatus Storage Experimental Energy Well Processor Experimental Signal Interpreter Hackware Deep Network Scanner Protection Improved Propulsion Shielding Weapon Enhanced Autogun Energy Gun EM Pulse Gun Energy Cannon Warp Cannon Ballistic Gun Enhanced Autogun Ballistic Cannon Gauss Cannon Launcher Rocket Launcher Special Weapon Guided Remote Datajack Impact Weapon Flail Build | -11 -10 -10 -9 -9 -9 -8 -8 -8 -8 -8 -7 -7 -7 -7 -6 -6 -6 -6 -6 -5 -5 -5 -5 -5 -4 -4 -4 -4 -3 -3 -3 -3 -2 -1 -1 ------- Run | Scr Mat Min Mat Min Exi Min Mat Gar Mat Gar Fac Low Low Dat Pro Fac Gar Fac Gar Fac Ext Cet Arc Hub Fac Upp Upp Zhi Pro Res Arm Lab Res Acc Com Slots Evolved 21 | . 4 . 1 . . 1 2 1 . . 2 1 . . 1 . 1 . . . 1 . 1 . . . . . . 1 . 1 1 2 . Power 2 | . . . . . . 1 1 . . . . . . . . . . . . . . . . . . . . . . . . . . . . Propulsion 4 | . 1 . 1 . . . . . . . . 1 . . . . . . . . . . . . . . . . . . . . 1 . . Utility 7 | . 1 . . . . . 1 1 . . 1 . . . 1 . . . . . 1 . 1 . . . . . . . . . . . . Weapon 8 | . 2 . . . . . . . . . 1 . . . . . 1 . . . . . . . . . . . . 1 . 1 . 2 . Parts Attached 173 | 4 8 . 8 2 11 2 11 4 . 1 15 8 3 3 1 3 4 2 . 4 1 1 1 5 5 1 1 2 . 15 4 8 5 7 23 Power 28 | 1 . . 1 . . 2 5 1 . . 4 1 . 1 . . . . . 1 . 1 . . . . . . . 3 . 2 3 1 1 Engine 7 | 1 . . 1 . . 1 2 1 . . 1 . . . . . . . . . . . . . . . . . . . . . . . . Core 11 | . . . . . . 1 3 . . . 3 1 . . . . . . . 1 . . . . . . . . . 1 . 1 . . . Reactor 10 | . . . . . . . . . . . . . . 1 . . . . . . . 1 . . . . . . . 2 . 1 3 1 1 Propulsion 26 | 1 2 . 6 . 2 . . 2 . . 2 3 . . . . . . . . . . . 1 1 . . . . 2 . . 2 . 2 Treads 2 | . . . . . . . . . . . . . . . . . . . . . . . . . . . . . . . . . . . 2 Leg 1 | . . . . . 1 . . . . . . . . . . . . . . . . . . . . . . . . . . . . . . Wheel 1 | 1 . . . . . . . . . . . . . . . . . . . . . . . . . . . . . . . . . . . Hover 2 | . 2 . . . . . . . . . . . . . . . . . . . . . . . . . . . . . . . . . . Flight 20 | . . . 6 . 1 . . 2 . . 2 3 . . . . . . . . . . . 1 1 . . . . 2 . . 2 . . Utility 63 | 1 1 . 1 2 3 . 6 1 . 1 4 2 1 2 1 2 3 1 . 2 1 . 1 1 1 1 1 2 . 6 1 2 . . 12 Device 23 | 1 . . . . 3 . 1 . . . 1 . . . . 1 2 1 . . 1 . . 1 1 1 . 1 . 2 . 1 . . 5 Storage 4 | . . . . 1 . . 1 . . . . . . . . . 1 . . . . . . . . . . . . . . . . . 1 Processor 10 | . . . . . . . . . . . 1 . . . . 1 . . . 1 . . . . . . 1 . . 2 . . . . 4 Hackware 5 | . . . . . . . . 1 . 1 . . . . 1 . . . . . . . . . . . . 1 . . . 1 . . . Protection 21 | . 1 . 1 1 . . 4 . . . 2 2 1 2 . . . . . 1 . . 1 . . . . . . 2 1 . . . 2 Artifact . | . . . . . . . . . . . . . . . . . . . . . . . . . . . . . . . . . . . . Weapon 56 | 1 5 . . . 6 . . . . . 5 2 2 . . 1 1 1 . 1 . . . 3 3 . . . . 4 3 4 . 6 8 Energy Gun 6 | 1 . . . . . . . . . . 1 . . . . . . . . . . . . 2 1 . . . . . . . . . 1 Energy Cannon 7 | . . . . . . . . . . . . . . . . . . . . . . . . . . . . . . . . 2 . 2 3 Ballistic Gun 29 | . . . . . 2 . . . . . 4 1 1 . . 1 1 1 . 1 . . . 1 2 . . . . 4 1 1 . 4 4 Ballistic Cannon 1 | . . . . . . . . . . . . . 1 . . . . . . . . . . . . . . . . . . . . . . Launcher 5 | . . . . . 2 . . . . . . 1 . . . . . . . . . . . . . . . . . . 2 . . . . Special Weapon 1 | . . . . . . . . . . . . . . . . . . . . . . . . . . . . . . . . 1 . . . Impact Weapon 7 | . 5 . . . 2 . . . . . . . . . . . . . . . . . . . . . . . . . . . . . . Slashing Weapon . | . . . . . . . . . . . . . . . . . . . . . . . . . . . . . . . . . . . . Piercing Weapon . | . . . . . . . . . . . . . . . . . . . . . . . . . . . . . . . . . . . . Special Melee Weapon . | . . . . . . . . . . . . . . . . . . . . . . . . . . . . . . . . . . . . Unidentified Prototypes 26 | . . . 1 1 4 . 1 . . . 3 1 1 . 1 . . . . . . . . . . . . 3 . . . 4 . 1 5 Parts Lost 8 | . . . . . 1 . . . . . 1 . . . . . . . . . . . . 2 . . . . . . . . . . 4 Power . | . . . . . . . . . . . . . . . . . . . . . . . . . . . . . . . . . . . . Propulsion . | . . . . . . . . . . . . . . . . . . . . . . . . . . . . . . . . . . . . Utility 4 | . . . . . 1 . . . . . . . . . . . . . . . . . . 2 . . . . . . . . . . 1 Weapon 4 | . . . . . . . . . . . 1 . . . . . . . . . . . . . . . . . . . . . . . 3 Highest Loss Streak 2 | . . . . . 1 . . . . . 1 . . . . . . . . . . . . 2 . . . . . . . . . . 1 Average Slot Usage (%) 92 | . 100 100 98 100 88 88 81 74 84 84 95 99 99 99 97 98 95 96 100 97 100 100 100 98 90 94 90 98 95 98 100 96 93 88 82 Engine 5 | . 18 12 10 11 11 6 8 10 15 15 10 4 . . . . . . . . . . . . . . . . . . . . . . . Core 6 | . . . . . . 9 10 7 7 7 9 13 17 15 11 11 10 10 10 10 10 10 9 9 9 9 9 9 9 8 9 6 2 . . Reactor 2 | . . . . . . . . . . . . . . . 5 5 5 5 5 5 5 5 4 4 4 4 4 4 4 3 4 4 5 7 7 Wheel 1 | . 13 . . . . . . . . . . . . . . . . . . . . . . . . . . . . . . . . . . Hover 2 | . 11 25 15 . . . . . . . . . . . . . . . . . . . . . . . . . . . . . . . . Flight 20 | . . . 13 33 32 31 21 20 23 23 20 24 29 29 27 27 26 26 26 26 25 25 23 23 23 23 23 23 23 22 22 21 20 19 14 Device 14 | . 18 12 11 11 16 20 19 15 15 15 16 11 11 11 11 11 10 14 15 14 11 15 14 12 14 18 14 17 14 13 13 13 12 11 10 Processor 5 | . . . . . . . . . . . 1 5 5 5 5 5 5 5 5 5 10 10 9 9 9 9 9 13 9 12 13 13 12 11 12 Hackware 3 | . . . . . . . . 3 7 8 8 5 5 3 5 5 5 5 5 5 5 5 4 3 . . . . 4 4 4 4 8 7 2 Protection 5 | . 3 12 11 11 4 . 2 7 7 5 4 5 4 6 11 11 10 5 5 2 5 5 9 8 4 4 4 4 4 4 4 2 . . . Ballistic Gun 17 | . . . . . 15 20 15 7 7 7 23 24 23 23 19 20 22 23 26 26 25 25 23 21 22 23 23 23 23 23 26 26 25 25 26 Impact Weapon 5 | . 29 37 35 33 7 . . . . . . . . . . . . . . . . . . . . . . . . . . . . . . Naked Turns . | . . . . . . . . . . . . . . . . . . . . . . . . . . . . . . . . . . . . Heaviest Build 92 | 8 13 13 19 19 27 25 33 30 30 30 39 37 40 55 55 52 55 56 56 56 50 54 56 58 58 57 53 58 57 60 54 64 70 82 92 Greatest Support 185 | 10 17 17 23 23 23 28 40 38 38 38 40 56 56 56 56 56 56 56 56 56 56 56 56 56 58 58 58 58 58 58 58 58 72 72 185 Greatest Overweight (x) 2 | . 1 . 1 . 1 . . . . . 1 . . . . . . . . . 1 . . 1 . . . . . 1 2 1 1 2 1 Average Overweight (x) . | . . . . . . . . . . . . . . . . . . . . . . . . . . . . . . . . . . . . Largest Inventory Capacity 4 | . . 1 2 2 2 2 2 3 3 3 3 3 3 3 4 4 4 4 4 4 4 4 4 4 4 4 4 4 4 4 4 4 4 4 4 Average Capacity 2 | . . . 1 2 2 2 2 2 3 3 3 3 3 3 3 4 4 4 4 4 4 4 4 4 4 4 4 4 4 4 4 4 4 4 4 Most Carried 4 | . . 1 2 2 2 2 2 3 3 3 3 3 3 3 4 4 4 4 4 4 4 4 4 4 4 4 3 4 4 4 4 4 4 4 4 Average Carried 2 | . . . 1 1 1 2 1 2 3 3 2 2 3 2 2 3 3 3 4 4 3 3 3 3 3 3 3 3 4 3 3 3 4 3 3 Final Capacity 4 | . . 1 2 2 2 2 2 3 3 3 3 3 3 3 4 4 4 4 4 4 4 4 4 4 4 4 4 4 4 4 4 4 4 4 4 Final Carried 4 | . . 1 2 2 2 2 2 3 3 3 3 3 3 3 2 4 4 4 4 4 3 4 3 4 4 3 3 4 4 4 3 4 4 4 4 Class Distribution -------------------- 32% | Scavenger-Scout 18% | Hacker-Sprinter 14% | Mutant 13% | Hacker-Scout 5% | Scavenger-Sprinter 4% | Sprinter 4% | Commander-Scout 3% | Scavenger-Executioner Dominant Class ---------------- Mutant | -10/Materials Mutant | -10/Mines Mutant | -9/Materials Sprinter | -9/Mines Sprinter | -9/Exiles Scavenger-Sprinter | -8/Mines Scavenger-Scout | -8/Materials Scavenger-Scout | -8/Garrison Scavenger-Scout | -8/Materials Scavenger-Scout | -8/Garrison Scavenger-Scout | -7/Factory Scavenger-Scout | -7/Lower Caves Scavenger-Scout | -7/Lower Caves Scavenger-Scout | -7/Data Miner Scavenger-Scout | -6/Proximity Caves Hacker-Scout | -6/Factory Hacker-Scout | -6/Garrison Hacker-Scout | -6/Factory Hacker-Scout | -6/Garrison Hacker-Scout | -5/Factory Hacker-Scout | -5/Extension Commander-Scout | -5/Cetus Commander-Scout | -5/Archives Commander-Scout | -5/Hub_04(d) Scavenger-Sprinter | -4/Factory Scavenger-Scout | -4/Upper Caves Scavenger-Scout | -4/Upper Caves Scavenger-Scout | -4/Zhirov Hacker-Sprinter | -3/Proximity Caves Hacker-Sprinter | -3/Research Hacker-Sprinter | -3/Armory Hacker-Sprinter | -3/Lab Hacker-Sprinter | -2/Research Hacker-Sprinter | -1/Access Hacker-Sprinter | -1/Command Resources | -11 -10 -10 -9 -9 -9 -8 -8 -8 -8 -8 -7 -7 -7 -7 -6 -6 -6 -6 -6 -5 -5 -5 -5 -5 -4 -4 -4 -4 -3 -3 -3 -3 -2 -1 -1 ----------- Run | Scr Mat Min Mat Min Exi Min Mat Gar Mat Gar Fac Low Low Dat Pro Fac Gar Fac Gar Fac Ext Cet Arc Hub Fac Upp Upp Zhi Pro Res Arm Lab Res Acc Com Matter Collected 14783 | 240 80 . . 523 286 308 1464 596 147 152 767 830 45 315 313 384 420 186 96 131 713 347 . 954 . 928 127 134 . 448 98 176 252 1143 2180 Remotely . | . . . . . . . . . . . . . . . . . . . . . . . . . . . . . . . . . . . . Salvage Created 22980 | 102 902 105 156 405 280 286 1471 675 168 273 642 908 81 443 428 509 420 186 96 291 1206 540 134 1886 . 945 102 84 . 1261 312 . 470 2888 4325 Parts 1148 | 5 34 7 3 11 4 31 86 45 29 14 51 63 2 27 32 37 27 11 12 17 48 25 4 96 . 30 7 3 2 69 11 4 17 113 171 Haulers Intercepted 11 | . 2 . . . . . 3 . . . 1 . . . . 2 . . . . . . . 2 . . . . . . . . . 1 . Recyclers Shooed 9 | 1 . 1 . 2 . . 3 . . . . . . . . . . . . . 1 . . . . . . . . 1 . . . . . Parts Field Recycled . | . . . . . . . . . . . . . . . . . . . . . . . . . . . . . . . . . . . . Retrieved Matter . | . . . . . . . . . . . . . . . . . . . . . . . . . . . . . . . . . . . . Parts Self-Destructed 120 | . . . . . . . . . . . . 57 2 . 32 . . . . . . . . . . 17 10 . 2 . . . . . . Prevented . | . . . . . . . . . . . . . . . . . . . . . . . . . . . . . . . . . . . . Kills | -11 -10 -10 -9 -9 -9 -8 -8 -8 -8 -8 -7 -7 -7 -7 -6 -6 -6 -6 -6 -5 -5 -5 -5 -5 -4 -4 -4 -4 -3 -3 -3 -3 -2 -1 -1 ------- Run | Scr Mat Min Mat Min Exi Min Mat Gar Mat Gar Fac Low Low Dat Pro Fac Gar Fac Gar Fac Ext Cet Arc Hub Fac Upp Upp Zhi Pro Res Arm Lab Res Acc Com Combat Hostiles Destroyed 379 | . 16 3 2 6 8 11 32 20 7 8 13 24 1 4 13 9 13 5 4 7 12 11 1 21 . 9 4 . 1 19 2 1 6 43 43 Melee 13 | . 7 2 . 4 . . . . . . . . . . . . . . . . . . . . . . . . . . . . . . . Guns 348 | . 4 . . . 5 11 31 20 7 8 13 24 1 4 13 9 13 5 4 6 12 11 1 18 . 9 4 . 1 19 2 1 6 43 43 AOE 10 | . 2 . . . 3 . 1 . . . . . . . . . . . . 1 . . . 3 . . . . . . . . . . . Classes Destroyed 23 | 2 5 1 1 1 2 1 2 . . . . 2 . . 1 . . . . . . . . . . . . . . . . . . 1 4 Worker 16 | . . 1 . 1 . . 2 . . . 1 . . . . 2 . . . . . . . 6 . . . . . 2 . . . 1 . Tunneler 4 | 2 . . . 1 . 1 . . . . . . . . . . . . . . . . . . . . . . . . . . . . . Hauler 11 | . 2 . . . . . 3 . . . 1 . . . . 2 . . . . . . . 2 . . . . . . . . . 1 . Recycler 5 | 1 . 1 . 1 . . . . . . . . . . . . . . . . 1 . . 1 . . . . . . . . . . . Mechanic 1 | . . . . 1 . . . . . . . . . . . . . . . . . . . . . . . . . . . . . . . Operator 11 | . 2 . . . . . 1 . . . . . . . . . . . . 1 1 . . 3 . . . . . . . . . . 3 Turret 1 | . . . . . 1 . . . . . . . . . . . . . . . . . . . . . . . . . . . . . . Watcher 24 | . 2 . . . . . 3 . . . 1 . . . . 2 . . . . 2 1 . 3 . . . . . 4 1 . 1 1 3 Swarmer 61 | . 2 3 . . . 7 5 5 . 1 . 11 . . 4 3 . . . . . 3 . 4 . . 2 . . . . . . 5 6 Saboteur 1 | . . . . . . . . . . . . . . . . . . . . . . . . . . . . . . . . . . 1 . Grunt 153 | . 14 . . 6 . 3 17 9 3 7 7 7 . . 6 4 10 3 3 5 4 1 . 9 . 8 . . . 8 . . 5 8 6 Brawler 8 | . . . . . . . 1 . . . . . . . 1 . . . . . . 1 . 1 . . . . . . . . . 2 2 Duelist 12 | . . . . . . . 2 3 . . 1 . . . . . . . . . . . . . . . . . . 1 . . . 4 1 Sentry 45 | . . . 2 . . . 4 2 4 . 5 2 . . . . 2 1 1 . 6 . 1 5 . 1 . . . 2 2 . 1 2 2 Hunter 22 | . . . . . . 1 3 1 . . . 1 1 . . 1 1 1 . 2 . . . 1 . . . . . 1 . . . 4 4 Programmer 17 | . . . . . . . . . . . . . . . 1 . . . . . . . . . . . 2 . . 3 . . . 6 5 Behemoth 8 | . . . . . . . . . . . . 1 . . 1 1 . . . . 2 . . . . . . . 1 . . . . 1 1 Cetus Guard 6 | . . . . . . . . . . . . . . . . . . . . . . 6 . . . . . . . . . . . . . M Guard 2 | . . . . . . . . . . . . . . . . . . . . . . . . . . . . . . . . . . . 2 Enhanced Grunt 7 | . . . . . . . . . . . . . . 4 . . . . . . . . . 3 . . . . . . . . . . . Enhanced Q-Series 9 | . . . . . . . . . . . . . . . . . . . . . . . . . . . . . . . . . . . 9 Lightning 1 | . . . . . . . . . . . . . . . . . . . . . . . . 1 . . . . . . . . . . . Tracker 8 | . . . . . . . . . . . . . . . . . . . . . . . . . . . . . . 3 . . . 5 . Combat Programmer 8 | . . . . . . . . . . . . . . . . . . . . . . . . . . . . . . 1 . . . 5 2 Striker 1 | . . . . . . . . . . . . . . . . . . . . . . . . . . . . . . . . . . . 1 Executioner 1 | . . . . . . . . . . . . . . . . . . . . . . . . . . . . . . . . . . . 1 Alpha 7 1 | . . . . . . . . . . . . . . . . . . . . . . . . . . . . . . . . . . . 1 Master Thief 2 | . . . . . . . . . . . . 2 . . . . . . . . . . . . . . . . . . . . . . . Assembled 7 | . . . . . 7 . . . . . . . . . . . . . . . . . . . . . . . . . . . . . . Guerrilla 1 | . . . . . . . . . . . . . . . . . . . . . . . . 1 . . . . . . . . . . . Best Kill Streak 16 | 2 4 3 1 8 8 4 16 11 2 5 6 12 1 5 8 5 13 4 4 6 9 5 1 9 . 3 2 1 1 9 2 1 5 13 8 Combat Bots Only 13 | . 4 3 1 4 8 4 12 11 2 5 6 12 1 4 8 4 13 4 4 5 4 5 1 6 . 3 2 . 1 9 1 1 5 12 8 Max Kills in Single Turn 7 | 1 1 1 1 1 2 2 2 2 1 1 2 2 1 1 2 2 2 1 1 1 1 2 1 7 . 1 1 1 1 2 1 1 1 3 2 Gunslinging 1 | . . . . . . . . . . . 1 1 . . 1 . . . . . . 1 . . . . . . . . . . . 1 1 Exploded 2 | . 1 . . . 2 . 1 . . . . . . . . . . . . 1 . . . 2 . . . . . . . . . . . Melee 1 | . 1 1 . 1 . . . . . . . . . . . . . . . . . . . . . . . . . . . . . . . Uniques/NPCs Destroyed 5 | . . . . 1 . . . . . . . . . 1 . . . . . . . . . . . . . 1 . . . 1 . . 1 YI-UF0 (-9/Mines) 8R-AWN (-9/Exiles) Data Miner (-7/Data Miner) Svarog (-4/Zhirov) A5 (-3/Lab) MAIN.C Shell (-1/Command) Combat | -11 -10 -10 -9 -9 -9 -8 -8 -8 -8 -8 -7 -7 -7 -7 -6 -6 -6 -6 -6 -5 -5 -5 -5 -5 -4 -4 -4 -4 -3 -3 -3 -3 -2 -1 -1 -------- Run | Scr Mat Min Mat Min Exi Min Mat Gar Mat Gar Fac Low Low Dat Pro Fac Gar Fac Gar Fac Ext Cet Arc Hub Fac Upp Upp Zhi Pro Res Arm Lab Res Acc Com Damage Taken 19163 | . 901 250 302 112 806 104 870 577 254 207 333 1047 . 356 530 331 432 76 98 345 428 308 41 1325 33 218 10 563 221 812 38 164 120 2472 4479 Core 13947 | . 763 200 225 62 644 82 672 317 145 139 262 738 . 282 376 241 269 53 67 281 185 130 3 780 9 170 8 446 173 539 29 133 93 1943 3488 Absorbed by Shields 594 | . . . . . . . . 35 . . 39 . . . . . . . . . 17 111 . . . . . . . . . . . . 392 Redirected to Core 11491 | . 424 111 133 44 416 72 584 270 123 123 219 630 . 282 314 184 221 43 63 165 177 86 3 569 9 129 8 329 173 425 29 98 93 1781 3161 Core Remaining (%) 82 | 100 . 37 . . . 50 . . . 100 . . . . 100 . . . 100 . . . . 56 . . . . 81 . . 100 100 . . Volleys Fired 1132 | 7 26 . . . 9 30 118 73 30 26 39 53 9 14 30 31 28 10 7 20 41 19 5 64 4 40 7 14 9 51 6 19 18 129 146 Largest 8 | 1 1 . . . 1 1 1 1 1 1 4 4 4 4 4 4 5 5 5 5 5 5 5 5 1 5 5 5 5 6 6 6 6 7 8 Hottest 338 | 40 40 . . . 33 30 30 30 30 30 105 105 105 105 105 100 125 125 125 125 125 125 125 125 80 125 125 125 125 150 150 150 150 180 338 Shots Fired 4522 | 7 26 . . . 58 54 176 73 30 26 93 191 27 55 113 121 118 48 35 100 205 95 25 265 4 200 35 70 45 257 36 99 63 761 1011 Gun 4481 | 7 26 . . . 52 54 176 73 30 26 93 190 25 55 113 121 118 48 35 100 205 95 25 265 4 200 35 70 45 257 36 96 54 746 1006 Cannon 34 | . . . . . . . . . . . . . 2 . . . . . . . . . . . . . . . . . . 3 9 15 5 Launcher 7 | . . . . . 6 . . . . . . 1 . . . . . . . . . . . . . . . . . . . . . . . Special . | . . . . . . . . . . . . . . . . . . . . . . . . . . . . . . . . . . . . Kinetic 4436 | . . . . . 52 54 176 73 30 26 93 190 27 55 113 121 118 48 35 100 205 95 25 255 . 200 35 70 45 257 36 96 54 746 1006 Thermal 46 | . . . . . . . . . . . . . . . . . . . . . . . . 10 4 . . . . . . 3 9 15 5 Explosive 7 | . . . . . 6 . . . . . . 1 . . . . . . . . . . . . . . . . . . . . . . . Electromagnetic 33 | 7 26 . . . . . . . . . . . . . . . . . . . . . . . . . . . . . . . . . . Robot Hit Streak 128 | 4 17 . . . 23 8 15 17 20 11 41 33 9 21 54 38 51 26 19 24 39 37 62 70 . 52 25 49 27 40 17 10 21 57 128 Robot Miss Streak 6 | 1 2 . . . 1 3 5 6 1 2 1 5 1 1 1 1 1 4 1 1 3 3 . 2 . 6 1 1 1 3 3 2 1 4 4 Penetration Max 2 | . . . . . . 1 2 2 2 2 2 1 . 1 1 . . . . . . . . . . . . . . . . . . . 1 Secondary Targets 80 | . . . . . . . . . . . 2 11 . 1 1 2 7 . 2 2 3 8 1 5 . 2 1 1 . 6 . . . 12 13 Max Gunslinging Chain 2 | . . . . . . . . . . . 1 1 . 1 1 1 1 . 1 1 1 2 1 1 . 1 1 1 . 1 . . . 2 2 Autonomous 133 | . . . . . 49 24 60 . . . . . . . . . . . . . . . . . . . . . . . . . . . . Shots Hit Robots 3643 | 6 94 13 24 27 53 30 115 47 26 18 78 144 10 46 95 99 101 33 26 85 167 83 25 203 . 153 29 58 42 193 22 65 35 584 814 Core Hits 1458 | 4 20 3 1 5 24 16 65 30 10 11 29 50 3 21 31 35 39 16 12 26 57 42 14 109 . 53 8 29 7 82 15 25 21 205 340 Critical Hits 341 | . . . . . 3 5 57 36 18 13 19 13 . 3 14 . 1 . . . 3 1 . 1 . 1 . 5 . 6 1 6 5 45 85 Critical Kills 90 | . . . . . 1 1 20 14 5 5 10 5 . 2 3 . . . . . 1 1 . 1 . . . . . . . . 3 10 8 Critical Parts Destroyed 195 | . . . . . 1 4 37 21 10 8 8 7 . 1 7 . 1 . . . 2 . . . . 1 . 3 . 5 . 4 2 19 54 Melee Attacks 172 | . 88 24 26 30 4 . . . . . . . . . . . . . . . . . . . . . . . . . . . . . . Impact 172 | . 88 24 26 30 4 . . . . . . . . . . . . . . . . . . . . . . . . . . . . . . Slashing . | . . . . . . . . . . . . . . . . . . . . . . . . . . . . . . . . . . . . Piercing . | . . . . . . . . . . . . . . . . . . . . . . . . . . . . . . . . . . . . Sneak Attacks 10 | . 4 2 . 3 1 . . . . . . . . . . . . . . . . . . . . . . . . . . . . . . Combat Hostiles . | . . . . . . . . . . . . . . . . . . . . . . . . . . . . . . . . . . . . Follow-up Attacks 20 | . 5 2 8 5 . . . . . . . . . . . . . . . . . . . . . . . . . . . . . . . Damage Inflicted 73971 | 101 1954 423 443 923 1796 890 3398 1124 617 406 1379 2297 60 765 1794 1752 1818 545 394 1388 3004 1638 539 5716 . 2911 666 1088 809 3615 436 919 1106 11999 15258 Guns 67044 | 78 313 . . . 1439 890 3300 1124 617 406 1379 2292 60 765 1794 1752 1818 545 394 1264 3004 1638 539 3331 . 2911 666 1088 809 3615 436 919 705 11955 15198 Cannons 505 | . . . . . . . . . . . . . . . . . . . . . . . . . . . . . . . . . 401 44 60 Explosions 2876 | 23 43 . . . 238 . 98 . . . . 5 . . . . . . . 124 . . . 2345 . . . . . . . . . . . Melee 3506 | . 1598 423 443 923 119 . . . . . . . . . . . . . . . . . . . . . . . . . . . . . . Ramming 40 | . . . . . . . . . . . . . . . . . . . . . . . . 40 . . . . . . . . . . . Kinetic 66653 | . . . . . 1439 890 3300 1124 617 406 1379 2292 60 765 1794 1752 1818 545 394 1264 3004 1638 539 3331 . 2911 666 1088 809 3615 436 919 705 11955 15198 Thermal 695 | 23 43 . . . . . . . . . . . . . . . . . . 124 . . . . . . . . . . . . 401 44 60 Explosive 243 | . . . . . 238 . . . . . . 5 . . . . . . . . . . . . . . . . . . . . . . . Electromagnetic 2834 | 78 313 . . . . . 98 . . . . . . . . . . . . . . . . 2345 . . . . . . . . . . . Impact 3506 | . 1598 423 443 923 119 . . . . . . . . . . . . . . . . . . . . . . . . . . . . . . Slashing . | . . . . . . . . . . . . . . . . . . . . . . . . . . . . . . . . . . . . Piercing . | . . . . . . . . . . . . . . . . . . . . . . . . . . . . . . . . . . . . Highest Corruption 16 | . . . . . . . 3 3 3 3 . . . . . . . . . . . . . 16 . . . . . 2 2 3 . 2 10 Average Corruption 3 | . . . . . . . 3 3 3 3 . . . . . . . . . . . . . 5 . . . . . 1 2 2 . 1 6 Corruption Purged 1 | . . . . . . . . . . . . . . . . . . . . . . . . . . . . . . . . . . . 1 Effects 134 | . . . . . . . 1 9 5 9 . . . . . . . . . . . . . 5 . . . . . 3 2 7 . 9 84 Message Errors 15 | . . . . . . . 1 2 . 3 . . . . . . . . . . . . . . . . . . . . 1 2 . . 6 Matter Fused 11 | . . . . . . . . 3 2 2 . . . . . . . . . . . . . . . . . . . . . 1 . . 3 Heat Flow Errors 10 | . . . . . . . . . 2 1 . . . . . . . . . . . . . 1 . . . . . . . 1 . 1 4 Energy Discharges 9 | . . . . . . . . 2 . 1 . . . . . . . . . . . . . 1 . . . . . 2 . . . . 3 Parts Rejected 1 | . . . . . . . . . . . . . . . . . . . . . . . . . . . . . . . . . . . 1 Data Loss (minor) 7 | . . . . . . . . 1 . 1 . . . . . . . . . . . . . . . . . . . 1 . . . . 4 Data Loss (major) 2 | . . . . . . . . . . . . . . . . . . . . . . . . . . . . . . . . . . . 2 Misfires 2 | . . . . . . . . . . . . . . . . . . . . . . . . . . . . . . . . . . . 2 Alerts 1 | . . . . . . . . . . . . . . . . . . . . . . . . . . . . . . . . . . . 1 Targeting Errors 68 | . . . . . . . . 1 1 1 . . . . . . . . . . . . . 3 . . . . . . 1 3 . 7 51 Weapon Failures 8 | . . . . . . . . . . . . . . . . . . . . . . . . . . . . . . . . . . 1 7 Overload Shots 1 | . . . . . . . . . . . . . . . . . . . . . . . . . . . . . . . . . . . 1 Effects 3 | . . . . . . . . . . . . . . . . . . . . . . . . . . . . . . . . . . . 3 Meltdown 3 | . . . . . . . . . . . . . . . . . . . . . . . . . . . . . . . . . . . 3 Overflow Damage 440 | . 167 80 18 140 9 . . . . . . . . . . . . . . . . . . 26 . . . . . . . . . . . Projectiles . | . . . . . . . . . . . . . . . . . . . . . . . . . . . . . . . . . . . . Explosions 35 | . . . . . 9 . . . . . . . . . . . . . . . . . . 26 . . . . . . . . . . . Melee 405 | . 167 80 18 140 . . . . . . . . . . . . . . . . . . . . . . . . . . . . . . . Knockbacks 19 | . 8 3 . 8 . . . . . . . . . . . . . . . . . . . . . . . . . . . . . . . Impact 17 | . 7 3 . 7 . . . . . . . . . . . . . . . . . . . . . . . . . . . . . . . Kinetic . | . . . . . . . . . . . . . . . . . . . . . . . . . . . . . . . . . . . . Secondary 2 | . 1 . . 1 . . . . . . . . . . . . . . . . . . . . . . . . . . . . . . . Self-Inflicted Damage 285 | . 34 . . . . . 13 . . . . 24 . . . . . . . 56 . . . 158 . . . . . . . . . . . Shots 7 | . 1 . . . . . 1 . . . . 1 . . . . . . . 1 . . . 3 . . . . . . . . . . . Rammed 3 | . . . . . . . . . . . . . . . . . . . . . . . . 2 . . . . . . . . . . 1 Targets Rammed 3 | . . . . . . . . . . . . . . . . . . . . . . . . 2 . . . . . . . . . . 1 Kicked . | . . . . . . . . . . . . . . . . . . . . . . . . . . . . . . . . . . . . Crushed . | . . . . . . . . . . . . . . . . . . . . . . . . . . . . . . . . . . . . Highest Temperature 525 | . 74 . 4 . 12 13 327 . 203 208 82 204 66 268 379 114 345 202 205 103 95 95 59 270 . 104 58 57 61 76 100 153 49 525 355 Average Temperature 82 | . 33 . 2 . 4 4 143 . 102 115 30 65 34 130 185 49 106 94 95 54 49 48 48 56 . 52 46 35 36 34 60 70 25 114 86 Received Heat Transfer 3126 | . 423 . 111 66 . 18 234 240 126 90 105 156 . 54 147 78 162 30 33 72 118 34 9 105 9 66 . 36 36 129 . . 27 36 376 Effects 12 | . . . . . . . 2 . . . . . . 3 1 . 3 . . . . . . . . . . . . . . . . 3 . Shutdowns 3 | . . . . . . . 1 . . . . . . . . . 1 . . . . . . . . . . . . . . . . 1 . Energy Bleed 3 | . . . . . . . 1 . . . . . . . . . 1 . . . . . . . . . . . . . . . . 1 . Interference 3 | . . . . . . . . . . . . . . 3 . . . . . . . . . . . . . . . . . . . . . Matter Decay 1 | . . . . . . . . . . . . . . . . . . . . . . . . . . . . . . . . . . 1 . Short Circuit 2 | . . . . . . . . . . . . . . . 1 . 1 . . . . . . . . . . . . . . . . . . Siege Activations . | . . . . . . . . . . . . . . . . . . . . . . . . . . . . . . . . . . . . Robots Corrupted 5 | . . . . . . . . . . . . . . . . . . . . . . . . 5 . . . . . . . . . . . Combat Hostiles . | . . . . . . . . . . . . . . . . . . . . . . . . . . . . . . . . . . . . Parts Fried 37 | . 11 2 1 8 . . . . . . . . . . . . . . . . . . . 15 . . . . . . . . . . . Impact Corruptions 35 | . 16 5 3 11 . . . . . . . . . . . . . . . . . . . . . . . . . . . . . . . Robots Melted . | . . . . . . . . . . . . . . . . . . . . . . . . . . . . . . . . . . . . Combat Hostiles . | . . . . . . . . . . . . . . . . . . . . . . . . . . . . . . . . . . . . Parts Melted 2 | . . . . . . . . . . . . . . . . . . . . . . . . . . . . . . . . . . . 2 Heat Transferred 570 | 50 . . . . . . . . . . . . . . . . . . . 150 . . . . . . . . . . . . 296 37 37 Parts Sabotaged . | . . . . . . . . . . . . . . . . . . . . . . . . . . . . . . . . . . . . Parts Stolen 3 | . . . . . . . . . . . . 2 . . . . . . . . . . . . . 1 . . . . . . . . . Parts Stripped . | . . . . . . . . . . . . . . . . . . . . . . . . . . . . . . . . . . . . Power Chain Reactions 3 | 1 1 . . . . . . . . . . . . . . . . . . . . . . 1 . . . . . . . . . . . Missiles Intercepted . | . . . . . . . . . . . . . . . . . . . . . . . . . . . . . . . . . . . . Alert | -11 -10 -10 -9 -9 -9 -8 -8 -8 -8 -8 -7 -7 -7 -7 -6 -6 -6 -6 -6 -5 -5 -5 -5 -5 -4 -4 -4 -4 -3 -3 -3 -3 -2 -1 -1 ------- Run | Scr Mat Min Mat Min Exi Min Mat Gar Mat Gar Fac Low Low Dat Pro Fac Gar Fac Gar Fac Ext Cet Arc Hub Fac Upp Upp Zhi Pro Res Arm Lab Res Acc Com Peak Influence 1219 | 15 450 214 170 256 . 304 954 1219 1108 1037 948 . . . . 268 366 302 291 402 517 682 416 1116 571 . . . . 399 423 . 182 854 1146 Initial 720 | . 9 134 5 66 . . 118 546 594 720 543 . . . . 147 141 191 211 152 123 176 272 145 546 . . . . 15 202 . . 108 546 Average 439 | 8 207 170 81 178 . 172 575 927 989 928 768 . . . . 205 267 237 242 222 295 412 396 333 561 . . . . 266 288 . 81 457 861 Maximum Alert Level 4 | . 2 1 . 1 . 1 3 4 4 3 3 . . . . 1 1 1 1 2 2 2 2 4 2 . . . . 1 2 . . 3 4 Low Security (%) 28 | 100 57 49 100 45 . 45 11 . . . . . . . . 29 25 7 . 36 34 5 . 29 . . . . . 19 . . 100 21 40 Level 1 32 | . 38 50 . 54 . 54 17 . . . . . . . . 70 74 92 100 57 43 58 18 42 . . . . . 80 92 . . 13 . Level 2 13 | . 3 . . . . . 27 12 5 . 40 . . . . . . . . 5 22 35 81 11 100 . . . . . 7 . . 48 10 Level 3 21 | . . . . . . . 43 60 67 100 59 . . . . . . . . . . . . 13 . . . . . . . . . 17 42 Level 4 3 | . . . . . . . . 26 26 . . . . . . . . . . . . . . 2 . . . . . . . . . . 6 Level 5 . | . . . . . . . . . . . . . . . . . . . . . . . . . . . . . . . . . . . . High Security . | . . . . . . . . . . . . . . . . . . . . . . . . . . . . . . . . . . . . Max Security . | . . . . . . . . . . . . . . . . . . . . . . . . . . . . . . . . . . . . Squads Dispatched 61 | . 7 . 1 1 . . 8 . 3 . 4 . . . . 1 . 1 . 1 2 . . 7 . . . . . 8 . . 2 10 5 Investigation 13 | . 3 . . . . . 3 . 1 . 1 . . . . . . 1 . . 1 . . 1 . . . . . 1 . . . . 1 Extermination 3 | . . . . . . . . . . . 1 . . . . . . . . . . . . . . . . . . . . . . 1 1 Reinforcement 18 | . 4 . . . . . 4 . . . . . . . . 1 . . . 1 1 . . 4 . . . . . 2 . . 1 . . Assault 8 | . . . 1 1 . . . . . . 1 . . . . . . . . . . . . 1 . . . . . . . . . 1 3 Garrison 6 | . . . . . . . 1 . 2 . 1 . . . . . . . . . . . . 1 . . . . . . . . . 1 . Intercept 13 | . . . . . . . . . . . . . . . . . . . . . . . . . . . . . . 5 . . 1 7 . Construction Impeded 2 | . . . . . . . 1 . . . . . . . . . . . . . . . . 1 . . . . . . . . . . . Haulers Reinforced 2 | . . . . . . . . . . . . . . . . 1 . . . . . . . . . . . . . 1 . . . . . Stealth | -11 -10 -10 -9 -9 -9 -8 -8 -8 -8 -8 -7 -7 -7 -7 -6 -6 -6 -6 -6 -5 -5 -5 -5 -5 -4 -4 -4 -4 -3 -3 -3 -3 -2 -1 -1 --------- Run | Scr Mat Min Mat Min Exi Min Mat Gar Mat Gar Fac Low Low Dat Pro Fac Gar Fac Gar Fac Ext Cet Arc Hub Fac Upp Upp Zhi Pro Res Arm Lab Res Acc Com Distress Signals 34 | . 2 . 1 . . . 4 . . . . . . . . . . . . . 1 2 . 6 . . . . . 2 . . 1 2 13 Communications Jammed . | . . . . . . . . . . . . . . . . . . . . . . . . . . . . . . . . . . . . Distress Signals . | . . . . . . . . . . . . . . . . . . . . . . . . . . . . . . . . . . . . Times Spotted 569 | . 28 3 11 11 10 11 50 32 13 15 14 29 1 2 15 11 13 5 4 14 19 18 4 43 5 10 7 3 1 34 5 1 11 49 67 Peak Tracking Total 14 | . 6 3 10 3 9 4 12 7 5 10 5 14 1 3 8 2 11 3 4 7 5 6 2 9 5 3 5 3 1 6 4 1 9 10 11 Tactical Retreats 39 | . 3 . 2 . 1 . 6 5 1 1 . 3 . . 1 . 1 1 1 2 . . . . . . 1 . . 3 1 . 2 2 2 Traps | -11 -10 -10 -9 -9 -9 -8 -8 -8 -8 -8 -7 -7 -7 -7 -6 -6 -6 -6 -6 -5 -5 -5 -5 -5 -4 -4 -4 -4 -3 -3 -3 -3 -2 -1 -1 ------- Run | Scr Mat Min Mat Min Exi Min Mat Gar Mat Gar Fac Low Low Dat Pro Fac Gar Fac Gar Fac Ext Cet Arc Hub Fac Upp Upp Zhi Pro Res Arm Lab Res Acc Com Traps Triggered 28 | . . . . . . . 2 9 . 3 1 . . . . . . . . 1 3 . . 2 . . . . . 5 . . . 1 1 Indirectly 1 | . . . . . . . . . . . . . . . . . . . . . . . . 1 . . . . . . . . . . . Trap Hack Attempts . | . . . . . . . . . . . . . . . . . . . . . . . . . . . . . . . . . . . . Triggered . | . . . . . . . . . . . . . . . . . . . . . . . . . . . . . . . . . . . . Disarmed . | . . . . . . . . . . . . . . . . . . . . . . . . . . . . . . . . . . . . Reprogrammed . | . . . . . . . . . . . . . . . . . . . . . . . . . . . . . . . . . . . . Reused . | . . . . . . . . . . . . . . . . . . . . . . . . . . . . . . . . . . . . Traps Extracted . | . . . . . . . . . . . . . . . . . . . . . . . . . . . . . . . . . . . . Installed . | . . . . . . . . . . . . . . . . . . . . . . . . . . . . . . . . . . . . Triggered 2 | . 1 . . . . . . . . . . . . . . . . . . . . . . . . . . . . . . . . . 1 Machines | -11 -10 -10 -9 -9 -9 -8 -8 -8 -8 -8 -7 -7 -7 -7 -6 -6 -6 -6 -6 -5 -5 -5 -5 -5 -4 -4 -4 -4 -3 -3 -3 -3 -2 -1 -1 ---------- Run | Scr Mat Min Mat Min Exi Min Mat Gar Mat Gar Fac Low Low Dat Pro Fac Gar Fac Gar Fac Ext Cet Arc Hub Fac Upp Upp Zhi Pro Res Arm Lab Res Acc Com Machines Disabled 47 | . . . . . 5 . 9 1 1 1 . 2 1 . . . . . . 3 . . 1 16 . . . 1 . . . 1 . 2 3 Max in Single Turn 12 | . . . . . 1 . 2 1 1 1 . 1 1 . . . . . . 3 . . . 12 . . . 1 . . . 1 . 1 1 Garrison Access 7 | . . . . . . . . . . . 1 . . . . . . . . . . . . 2 . . . . . 2 . . . 2 . Garrison Relay 2 | . . . . . . . . 1 . 1 . . . . . . . . . . . . . . . . . . . . . . . . . Network Hub 3 | . . . . . . . . . . . . . . . . . . . . . . . . 3 . . . . . . . . . . . Machines Sabotaged . | . . . . . . . . . . . . . . . . . . . . . . . . . . . . . . . . . . . . Garrisons Compromised . | . . . . . . . . . . . . . . . . . . . . . . . . . . . . . . . . . . . . Overloaded Fab Kills . | . . . . . . . . . . . . . . . . . . . . . . . . . . . . . . . . . . . . Fab Network Shutdowns . | . . . . . . . . . . . . . . . . . . . . . . . . . . . . . . . . . . . . Hacking | -11 -10 -10 -9 -9 -9 -8 -8 -8 -8 -8 -7 -7 -7 -7 -6 -6 -6 -6 -6 -5 -5 -5 -5 -5 -4 -4 -4 -4 -3 -3 -3 -3 -2 -1 -1 --------- Run | Scr Mat Min Mat Min Exi Min Mat Gar Mat Gar Fac Low Low Dat Pro Fac Gar Fac Gar Fac Ext Cet Arc Hub Fac Upp Upp Zhi Pro Res Arm Lab Res Acc Com Machines Accessed 85 | . 4 . 2 . 2 1 5 . 2 . 2 1 1 4 . 6 . 2 . 5 8 3 . 9 1 . 2 6 . 7 1 2 2 3 4 Terminals 45 | . 2 . 1 . . 1 3 . . . . 1 . . . 2 . . . 4 8 3 . 7 1 . . . . 4 1 . 2 1 4 Fabricators 6 | . . . . . . . . . . . . . . . . 3 . 1 . 1 . . . . . . . . . 1 . . . . . Repair Stations 1 | . . . 1 . . . . . . . . . . . . . . . . . . . . . . . . . . . . . . . . Recycling Units 4 | . 2 . . . . . 1 . 1 . . . . . . . . . . . . . . . . . . . . . . . . . . Scanalyzers 1 | . . . . . . . . . . . 1 . . . . . . . . . . . . . . . . . . . . . . . . Garrison Access 11 | . . . . . . . 1 . 1 . 1 . . . . 1 . 1 . . . . . 2 . . . . . 2 . . . 2 . Total Hacks 262 | . 14 . 7 . 5 2 20 . 4 . 3 4 1 25 . 14 . 5 . 12 10 8 . 24 2 . 7 15 . 29 3 20 8 6 14 Successful 181 | . 12 . 3 . 5 . 8 . 3 . 3 4 1 25 . 13 . 3 . 7 9 6 . 16 2 . 7 15 . 8 1 20 2 4 4 Failed 79 | . 2 . 4 . . 2 12 . 1 . . . . . . 1 . 2 . 4 . 2 . 8 . . . . . 21 2 . 6 2 10 Catastrophic 18 | . . . . . . . 3 . . . . . . . . . . . . . . 2 . 3 . . . . . 6 . . 2 . 2 Database Lockouts 2 | . . . . . . . . . . . . . . . . . . . . 1 1 . . . . . . . . . . . . . . Manual 104 | . 7 . 5 . 1 2 15 . 2 . . . . . . 5 . . . 9 3 4 . 12 2 . . . . 15 3 2 8 1 8 Terminals 146 | . 11 . 5 . . 2 14 . . . . 4 . . . 7 . . . 9 10 8 . 22 2 . . . . 23 3 . 8 4 14 Fabricators 17 | . . . . . . . . . . . . . . . . 6 . 4 . 3 . . . . . . . . . 4 . . . . . Repair Stations 2 | . . . 2 . . . . . . . . . . . . . . . . . . . . . . . . . . . . . . . . Recycling Units 11 | . 3 . . . . . 5 . 3 . . . . . . . . . . . . . . . . . . . . . . . . . . Scanalyzers 2 | . . . . . . . . . . . 2 . . . . . . . . . . . . . . . . . . . . . . . . Garrison Access 11 | . . . . . . . 1 . 1 . 1 . . . . 1 . 1 . . . . . 2 . . . . . 2 . . . 2 . Terminal Hacks 122 | . 6 . . . 5 . 2 . . . . 4 1 25 . 5 . . . 3 9 5 . 5 1 . 7 15 . 3 . 20 2 2 2 Record 59 | . 2 . . . 4 . . . . . . 4 1 11 . . . . . . . 4 . . . . 6 7 . . . 20 . . . Part Schematic 13 | . . . . . . . . . . . . . . 6 . 1 . . . 1 1 . . . . . . 4 . . . . . . . Robot Schematic 5 | . . . . . . . . . . . . . . 5 . . . . . . . . . . . . . . . . . . . . . Robot Analysis 1 | . 1 . . . . . . . . . . . . . . . . . . . . . . . . . . . . . . . . . . Prototype ID Bank 7 | . . . . . . . . . . . . . . 3 . . . . . . . . . . . . . 4 . . . . . . . Open Door 10 | . . . . . . . . . . . . . . . . . . . . . 7 1 . . . . 1 . . . . . . . 1 Level Access Points 2 | . . . . . . . . . . . . . . . . 1 . . . . . . . . . . . . . . . . 1 . . Branch Access Points 6 | . . . . . . . . . . . . . . . . 1 . . . 1 . . . . 1 . . . . 1 . . 1 1 . Garrison Index 1 | . . . . . . . . . . . . . . . . 1 . . . . . . . . . . . . . . . . . . . Unreport Threat 9 | . . . . . . . 2 . . . . . . . . . . . . 1 . . . 5 . . . . . . . . . . 1 Locate Traps 1 | . 1 . . . . . . . . . . . . . . . . . . . . . . . . . . . . . . . . . . Security Status 1 | . 1 . . . . . . . . . . . . . . . . . . . . . . . . . . . . . . . . . . Recall Reinforcements 1 | . . . . . . . . . . . . . . . . . . . . . 1 . . . . . . . . . . . . . . Hauler Manifests 2 | . . . . . . . . . . . . . . . . 1 . . . . . . . . . . . . . 1 . . . . . Registered Components 1 | . 1 . . . . . . . . . . . . . . . . . . . . . . . . . . . . . . . . . . Zone Layout 2 | . . . . . . . . . . . . . . . . . . . . . . . . . . . . . . 1 . . . 1 . EX-Prototype ID Bank 1 | . . . . . 1 . . . . . . . . . . . . . . . . . . . . . . . . . . . . . . Fabricator Hacks 12 | . . . . . . . . . . . . . . . . 6 . 2 . 2 . . . . . . . . . 2 . . . . . Load Schematic 6 | . . . . . . . . . . . . . . . . 3 . 1 . 1 . . . . . . . . . 1 . . . . . Build 6 | . . . . . . . . . . . . . . . . 3 . 1 . 1 . . . . . . . . . 1 . . . . . Repair Station Hacks 2 | . . . 2 . . . . . . . . . . . . . . . . . . . . . . . . . . . . . . . . Scan Component 1 | . . . 1 . . . . . . . . . . . . . . . . . . . . . . . . . . . . . . . . Repair 1 | . . . 1 . . . . . . . . . . . . . . . . . . . . . . . . . . . . . . . . Recycling Unit Hacks 4 | . 1 . . . . . 2 . 1 . . . . . . . . . . . . . . . . . . . . . . . . . . Report Inventory 3 | . 1 . . . . . 1 . 1 . . . . . . . . . . . . . . . . . . . . . . . . . . Retrieve Components 1 | . . . . . . . 1 . . . . . . . . . . . . . . . . . . . . . . . . . . . . Scanalyzer 2 | . . . . . . . . . . . 2 . . . . . . . . . . . . . . . . . . . . . . . . Insert Component 1 | . . . . . . . . . . . 1 . . . . . . . . . . . . . . . . . . . . . . . . Analyze 1 | . . . . . . . . . . . 1 . . . . . . . . . . . . . . . . . . . . . . . . Garrison Access Hacks 11 | . . . . . . . 1 . 1 . 1 . . . . 1 . 1 . . . . . 2 . . . . . 2 . . . 2 . Unlock Access 5 | . . . . . . . 1 . 1 . . . . . . 1 . 1 . . . . . 1 . . . . . . . . . . . Seal Access 6 | . . . . . . . . . . . 1 . . . . . . . . . . . . 1 . . . . . 2 . . . 2 . Unauthorized Hacks 28 | . 5 . 1 . . . 3 . 1 . . . . . . 1 . . . 2 . 1 . 9 1 . . . . 1 1 . . . 2 Terminals 24 | . 3 . 1 . . . 2 . . . . . . . . 1 . . . 2 . 1 . 9 1 . . . . 1 1 . . . 2 Track 5 | . . . . . . . . . . . . . . . . . . . . 1 . . . 3 . . . . . . . . . . 1 Assimilate 2 | . . . . . . . . . . . . . . . . 1 . . . . . . . 1 . . . . . . . . . . . Botnet 15 | . 2 . 1 . . . 2 . . . . . . . . . . . . 1 . 1 . 4 1 . . . . 1 1 . . . 1 Disrupt 1 | . . . . . . . . . . . . . . . . . . . . . . . . 1 . . . . . . . . . . . Search 1 | . 1 . . . . . . . . . . . . . . . . . . . . . . . . . . . . . . . . . . Fabricators . | . . . . . . . . . . . . . . . . . . . . . . . . . . . . . . . . . . . . Repair Stations . | . . . . . . . . . . . . . . . . . . . . . . . . . . . . . . . . . . . . Recycling Units 4 | . 2 . . . . . 1 . 1 . . . . . . . . . . . . . . . . . . . . . . . . . . Tunnel 4 | . 2 . . . . . 1 . 1 . . . . . . . . . . . . . . . . . . . . . . . . . . Scanalyzers . | . . . . . . . . . . . . . . . . . . . . . . . . . . . . . . . . . . . . Garrison Access . | . . . . . . . . . . . . . . . . . . . . . . . . . . . . . . . . . . . . Data Cores Recovered 7 | . . . . . . . . . . . . . . . . . . . . 1 1 . . 2 . . . . . . . . . . 3 Used 3 | . . . . . . . . . . . . . . . . . . . . 1 1 . . 1 . . . . . . . . . . . Hacking Detections 32 | . 2 . 2 . . 1 4 . 1 . 1 . . . . 3 . 1 . 3 2 2 . 4 . . . . . 3 . . 2 . 1 Full Trace Events 6 | . 1 . 1 . . . 2 . . . . . . . . . . 1 . . . . . 1 . . . . . . . . . . . Feedback Events . | . . . . . . . . . . . . . . . . . . . . . . . . . . . . . . . . . . . . Feedback Blocked . | . . . . . . . . . . . . . . . . . . . . . . . . . . . . . . . . . . . . Robot Schematics Acquired 5 | . . . . . . . . . . . . . . 5 . . . . . . . . . . . . . . . . . . . . . Robots Built . | . . . . . . . . . . . . . . . . . . . . . . . . . . . . . . . . . . . . Matter . | . . . . . . . . . . . . . . . . . . . . . . . . . . . . . . . . . . . . Time . | . . . . . . . . . . . . . . . . . . . . . . . . . . . . . . . . . . . . Total Robot Build Rating . | . . . . . . . . . . . . . . . . . . . . . . . . . . . . . . . . . . . . Part Schematics Acquired 14 | . . . . . . . . . . . 1 . . 6 . 1 . . . 1 1 . . . . . . 4 . . . . . . . Parts Built 6 | . . . . . . . . . . . . . . . . 3 . 1 . 1 . . . . . . . . . 1 . . . . . Matter 1479 | . . . . . . . . . . . . . . . . 756 . 219 . 285 . . . . . . . . . 219 . . . . . Time 457 | . . . . . . . . . . . . . . . . 285 . 58 . 76 . . . . . . . . . 38 . . . . . Total Part Build Rating 23 | . . . . . . . . . . . . . . . . 12 . 3 . 5 . . . . . . . . . 3 . . . . . Parts Repaired 1 | . . . 1 . . . . . . . . . . . . . . . . . . . . . . . . . . . . . . . . Time 26 | . . . 26 . . . . . . . . . . . . . . . . . . . . . . . . . . . . . . . . Parts Recycled . | . . . . . . . . . . . . . . . . . . . . . . . . . . . . . . . . . . . . Recycled Matter . | . . . . . . . . . . . . . . . . . . . . . . . . . . . . . . . . . . . . Retrieved Matter . | . . . . . . . . . . . . . . . . . . . . . . . . . . . . . . . . . . . . Retrieved Components 1 | . . . . . . . 1 . . . . . . . . . . . . . . . . . . . . . . . . . . . . Parts Scanalyzed 1 | . . . . . . . . . . . 1 . . . . . . . . . . . . . . . . . . . . . . . . Part Schematics Acquired 1 | . . . . . . . . . . . 1 . . . . . . . . . . . . . . . . . . . . . . . . Parts Damaged . | . . . . . . . . . . . . . . . . . . . . . . . . . . . . . . . . . . . . Bothacking | -11 -10 -10 -9 -9 -9 -8 -8 -8 -8 -8 -7 -7 -7 -7 -6 -6 -6 -6 -6 -5 -5 -5 -5 -5 -4 -4 -4 -4 -3 -3 -3 -3 -2 -1 -1 ------------ Run | Scr Mat Min Mat Min Exi Min Mat Gar Mat Gar Fac Low Low Dat Pro Fac Gar Fac Gar Fac Ext Cet Arc Hub Fac Upp Upp Zhi Pro Res Arm Lab Res Acc Com Used RIF Installer 4 | . . . . . . . . 1 . 1 . . . . . . 1 . 1 . . . . . . . . . . . . . . . . Hotswap 1 | . . . . . . . . . . . . . . . . . . . 1 . . . . . . . . . . . . . . . . Threat Obfuscator 1 | . . . . . . . . . . 1 . . . . . . . . . . . . . . . . . . . . . . . . . Structural Interface 1 | . . . . . . . . . . . . . . . . . 1 . . . . . . . . . . . . . . . . . . Robots Hacked . | . . . . . . . . . . . . . . . . . . . . . . . . . . . . . . . . . . . . Non-combat . | . . . . . . . . . . . . . . . . . . . . . . . . . . . . . . . . . . . . Combat . | . . . . . . . . . . . . . . . . . . . . . . . . . . . . . . . . . . . . Robot Hacks Applied . | . . . . . . . . . . . . . . . . . . . . . . . . . . . . . . . . . . . . Relay Couplers Released 3 | . . . . . . . . 1 . 2 . . . . . . . . . . . . . . . . . . . . . . . . . Machine Destruction 3 | . . . . . . . . 1 . 2 . . . . . . . . . . . . . . . . . . . . . . . . . Attached 2 | . . . . . . . . 1 . 1 . . . . . . . . . . . . . . . . . . . . . . . . . Robots Rewired 17 | . . . . . . . . 6 . . . . . . . . . . . . 7 . . . . . . . . . 4 . . . . Allies Hacked . | . . . . . . . . . . . . . . . . . . . . . . . . . . . . . . . . . . . . Hacks Repelled . | . . . . . . . . . . . . . . . . . . . . . . . . . . . . . . . . . . . . Allies | -11 -10 -10 -9 -9 -9 -8 -8 -8 -8 -8 -7 -7 -7 -7 -6 -6 -6 -6 -6 -5 -5 -5 -5 -5 -4 -4 -4 -4 -3 -3 -3 -3 -2 -1 -1 -------- Run | Scr Mat Min Mat Min Exi Min Mat Gar Mat Gar Fac Low Low Dat Pro Fac Gar Fac Gar Fac Ext Cet Arc Hub Fac Upp Upp Zhi Pro Res Arm Lab Res Acc Com Total Allies 35 | . . . . . . . . 6 . . . . . . . 1 . . . . 18 5 . 1 . . . . . . 4 . . . . Largest Group 18 | . . . . . . . . 6 6 4 3 2 . . . 1 1 . . . 14 18 16 16 . . . . . . 4 . . . . Highest-Rated Group 950 | . . . . . . . . 90 90 60 45 30 . . . 26 26 . . . 500 950 899 769 . . . . . . 168 . . . . Highest-Rated Ally 156 | . . . . . . . . 15 15 15 15 15 . . . 26 26 . . . 156 156 156 94 . . . . . . 42 . . . . Total Orders . | . . . . . . . . . . . . . . . . . . . . . . . . . . . . . . . . . . . . Ally Attacks 207 | . . . . . . . . 14 28 16 12 . . . . . . . . . 24 43 12 46 . . . . . . 12 . . . . Total Damage 5056 | . . . . . . . . 235 616 368 285 . . . . . . . . . 606 1051 322 1368 . . . . . . 205 . . . . Kills 43 | . . . . . . . . 7 5 7 3 . . . . . . . . . 3 7 3 4 . . . . . . 4 . . . . Allies Corrupted 5 | . . . . . . . . . . . . . . . . . . . . . . . . 5 . . . . . . . . . . . Allies Melted . | . . . . . . . . . . . . . . . . . . . . . . . . . . . . . . . . . . . . Intel | -11 -10 -10 -9 -9 -9 -8 -8 -8 -8 -8 -7 -7 -7 -7 -6 -6 -6 -6 -6 -5 -5 -5 -5 -5 -4 -4 -4 -4 -3 -3 -3 -3 -2 -1 -1 ------- Run | Scr Mat Min Mat Min Exi Min Mat Gar Mat Gar Fac Low Low Dat Pro Fac Gar Fac Gar Fac Ext Cet Arc Hub Fac Upp Upp Zhi Pro Res Arm Lab Res Acc Com Robot Analysis Total 116 | . 1 . . . . . . . . . . . . 115 . . . . . . . . . . . . . . . . . . . . . Derelict Logs Recovered 11 | . . 2 . 2 . . . . . . . 2 1 . 1 . . . . . . . . . . 3 . . . . . . . . . Drone Launches . | . . . . . . . . . . . . . . . . . . . . . . . . . . . . . . . . . . . . Drone Recoveries . | . . . . . . . . . . . . . . . . . . . . . . . . . . . . . . . . . . . . Exploration | -11 -10 -10 -9 -9 -9 -8 -8 -8 -8 -8 -7 -7 -7 -7 -6 -6 -6 -6 -6 -5 -5 -5 -5 -5 -4 -4 -4 -4 -3 -3 -3 -3 -2 -1 -1 ------------- Run | Scr Mat Min Mat Min Exi Min Mat Gar Mat Gar Fac Low Low Dat Pro Fac Gar Fac Gar Fac Ext Cet Arc Hub Fac Upp Upp Zhi Pro Res Arm Lab Res Acc Com Turns Passed 11583 | 85 868 420 250 242 387 310 576 671 238 348 407 612 98 93 211 552 141 137 60 160 419 338 87 317 76 267 98 187 67 744 190 123 151 652 1001 Spaces Moved 15750 | 56 763 658 209 351 500 720 697 703 96 404 625 1263 280 158 320 503 164 193 107 289 491 284 47 600 171 414 239 247 158 1083 183 230 324 1041 1179 Core 27 | 14 . . . . . . . 2 . . . . . . . . . . . . 1 . . . . . . . . . 10 . . . . Treads 150 | . . . . . . . . . . . . . . . . . . . . . . . . . . . . . . . . . . . 150 Legs . | . . . . . . . . . . . . . . . . . . . . . . . . . . . . . . . . . . . . Wheels 326 | 42 284 . . . . . . . . . . . . . . . . . . . . . . . . . . . . . . . . . . Hover 1211 | . 479 658 74 . . . . . . . . . . . . . . . . . . . . . . . . . . . . . . . . Flight 14036 | . . . 135 351 500 720 697 701 96 404 625 1263 280 158 320 503 164 193 107 289 490 284 47 600 171 414 239 247 158 1083 173 230 324 1041 1029 Fastest Speed 25 | 50 56 56 29 29 29 29 29 30 30 30 29 25 25 25 25 25 25 25 25 25 25 25 25 25 25 25 25 25 25 25 25 25 25 26 26 Average Speed 32 | 72 65 56 41 29 40 29 30 31 30 30 31 27 25 25 25 25 25 25 25 25 25 25 25 25 25 25 25 25 25 28 31 25 26 31 43 Slowest Speed 184 | 80 120 56 120 29 102 29 32 50 30 30 103 29 25 25 25 25 25 25 25 25 100 25 25 103 25 25 25 25 25 103 150 99 106 184 160 Overloaded Moves . | . . . . . . . . . . . . . . . . . . . . . . . . . . . . . . . . . . . . Propulsion Burnouts . | . . . . . . . . . . . . . . . . . . . . . . . . . . . . . . . . . . . . Robots Hopped 65 | . . . . . . 9 1 . 2 . 2 3 3 . . 6 . 2 . 1 1 . . 12 1 1 . . . 12 2 . . 6 1 Cave-ins Triggered . | . . . . . . . . . . . . . . . . . . . . . . . . . . . . . . . . . . . . Teleports 2 | . . . . . . . . . . . . . . . . . . . . . . . . . . . . 1 . . 1 . . . . Exploration Rate (%) 49 | 4 94 97 29 91 70 99 58 80 9 50 14 94 54 78 49 13 31 7 44 11 76 79 66 67 8 54 43 83 35 33 12 98 12 20 37 Regions Visited 35 Branch Regions 19 Pre-discovered Areas 29 | . 2 2 . . 1 . 1 . 1 . . 1 . 17 . . . . . . . . . . . 1 . 3 . . . . . . . Known Exits Taken 25 | . . . 1 . . . 1 . 1 . 1 1 1 1 1 1 . 1 . 1 1 1 1 1 1 1 1 1 1 1 1 1 1 1 . Unknown Exits Taken 6 | 1 1 1 . 1 1 1 . . . . . . . . . . . . . . . . . . . . . . . . . . . . . Scrap Searched 14 | . . 1 . 3 . 1 . . . . . 3 4 . . . . . . . . . . . . 1 1 . . . . . . . . Spaces Dug 51 | . 2 2 2 . 4 8 . . . 2 . 16 . . . . . . . . . . . 4 2 . . . . . . . . 9 . Terrain Destroyed 750 | . 5 2 2 . 58 39 46 8 5 9 1 20 . . 3 . . . . 34 . . . 470 2 . . . . . . . . 9 37 Melee 6 | . 2 2 2 . . . . . . . . . . . . . . . . . . . . . . . . . . . . . . . . Projectile 182 | . . . . . 15 39 46 8 5 9 1 4 . . 3 . . . . . . . . 4 2 . . . . . . . . 9 37 AOE 562 | . 3 . . . 43 . . . . . . 16 . . . . . . . 34 . . . 466 . . . . . . . . . . . Terrain Rammed . | . . . . . . . . . . . . . . . . . . . . . . . . . . . . . . . . . . . . Walls Destroyed . | . . . . . . . . . . . . . . . . . . . . . . . . . . . . . . . . . . . . Machines Disabled . | . . . . . . . . . . . . . . . . . . . . . . . . . . . . . . . . . . . . Actions | -11 -10 -10 -9 -9 -9 -8 -8 -8 -8 -8 -7 -7 -7 -7 -6 -6 -6 -6 -6 -5 -5 -5 -5 -5 -4 -4 -4 -4 -3 -3 -3 -3 -2 -1 -1 --------- Run | Scr Mat Min Mat Min Exi Min Mat Gar Mat Gar Fac Low Low Dat Pro Fac Gar Fac Gar Fac Ext Cet Arc Hub Fac Upp Upp Zhi Pro Res Arm Lab Res Acc Com Total 20967 | 91 985 681 342 455 666 780 940 1080 272 604 785 1458 292 193 414 894 237 271 134 359 753 535 117 698 197 546 270 360 177 1465 308 282 373 1344 1609 Wait 2600 | 25 92 3 97 50 128 20 33 153 134 125 54 99 . 1 16 335 21 60 16 38 145 211 62 14 17 45 24 79 . 214 69 2 8 106 104 Move 15595 | 55 762 657 208 350 499 701 695 702 91 403 620 1256 273 157 319 492 163 189 106 286 488 283 46 577 168 411 238 246 157 1060 179 229 323 1029 1177 Hop 59 | . . . . . . 9 1 . 2 . 2 3 3 . . 5 . 2 . 1 1 . . 11 1 1 . . . 10 1 . . 5 1 Pick Up 43 | . . 1 3 . 4 . 1 1 . 1 4 2 1 2 2 3 . 1 . 1 . 1 . 1 . 2 . 1 . 1 1 4 . 2 3 Fast Attach 132 | 4 6 . 6 2 7 2 8 3 . 1 13 6 2 3 . 1 . 2 . 4 . 1 . 2 . . 1 4 . 14 2 7 5 5 21 Attach 16 | . . . . . . . 1 . . . 2 . . . 1 . 1 . . . 1 . 1 . 1 1 . . . 1 2 1 . 2 1 Detach 25 | . . . . 1 . . . . . . 3 . . 1 1 . 1 . . . . . . 1 1 . . 1 . 2 1 3 . 3 6 Swap 33 | . 2 . 2 . 4 . 2 1 . . 1 3 2 . . 2 3 . . . . . . 3 4 . . . . . 1 2 . . 1 Drop 124 | . 4 . 8 2 11 1 10 1 . 2 12 4 2 4 3 2 . 2 . 3 . 1 . 1 1 2 . 1 . 6 3 8 5 7 18 Fire 1132 | 7 26 . . . 9 30 118 73 30 26 39 53 9 14 30 31 28 10 7 20 41 19 5 64 4 40 7 14 9 51 6 19 18 129 146 Melee 141 | . 80 17 18 22 4 . . . . . . . . . . . . . . . . . . . . . . . . . . . . . . Ram 1 | . . . . . . . . . . . . . . . . . . . . . . . . 1 . . . . . . . . . . . Kick . | . . . . . . . . . . . . . . . . . . . . . . . . . . . . . . . . . . . . Crush 1 | . . . . . . . . . . . . . . . . . . . . . . . . . . . . . . . . . . . 1 Escape Stasis 171 | . . . . . . . . 67 . 33 18 . . . . . . . . . 16 . . . . . . 1 . 36 . . . . . Rewire 124 | . . . . . . . . 49 . . . . . . . . . . . . 31 . . . . . . . . 1 43 . . . . Trap . | . . . . . . . . . . . . . . . . . . . . . . . . . . . . . . . . . . . . Miscellaneous 770 | . 13 3 . 28 . 17 71 30 15 13 17 32 . 11 42 23 20 5 5 6 30 19 3 23 . 44 . 13 11 69 . 7 14 56 130 Route ------- -11/Scrapyard -10/Materials (discovered 4 exits: *Mat x3 / [*Min]) -10/Mines (discovered 2 exits: *Mat x2) -9/Materials (discovered 3 exits: *Min x2 / [*Sto]) -9/Mines (discovered 3 exits: *Mat x2 / *Exi) -9/Exiles -8/Mines (discovered 2 exits: *Mat x2) -8/Materials (discovered 2 exits: *Fac / Gar) -8/Garrison (discovered 3 exits: *Mat x3) -8/Materials -8/Garrison (discovered 2 exits: *Fac x2) -7/Factory (discovered 2 exits: *Fac / *Low) -7/Lower Caves (discovered 2 exits: *Low / *Zio) -7/Lower Caves -7/Data Miner -6/Proximity Caves -6/Factory (discovered 7 exits: *Fac x4 / Low x2 / Gar) -6/Garrison -6/Factory -6/Garrison -5/Factory (discovered 4 exits: Upp x2 / *Ext x2) -5/Extension (discovered 2 exits: *Fac / *Cet) -5/Cetus (discovered 2 exits: *Fac / *Arc) -5/Archives (discovered 2 exits: Fac / *Hub) -5/Hub_04(d) (discovered 3 exits: *Fac x3) -4/Factory (discovered 2 exits: *Upp x2) -4/Upper Caves -4/Upper Caves (discovered 2 exits: *Res / *Zhi) -4/Zhirov -3/Proximity Caves -3/Research (discovered 3 exits: *Arm / *Tes x2) -3/Armory -3/Lab -2/Research (discovered 5 exits: *Acc x3 / Qua x2) -1/Access -1/Command (discovered 2 exits: *Sur x2) History --------- Turn | Location | Event 3 | -11/Scrapyard | Discovered new exit (range 16) 86 | -11/Scrapyard | Entered Materials 221 | -10/Materials | Discovered new exit (range 15) 304 | -10/Materials | Build established: Mutant 402 | -10/Materials | Upgraded with Weapon slot (x1) 460 | -10/Materials | Core integrity fell below 50% 541 | -10/Materials | Reached level 2 595 | -10/Materials | Upgraded with Propulsion slot (x1) 630 | -10/Materials | Discovered new exit (range 10) 637 | -10/Materials | Discovered new exit (range 14) 645 | -10/Materials | Upgraded with Weapon slot (x1) 737 | -10/Materials | Upgraded with Utility slot (x1) 753 | -10/Materials | Core integrity fell below 20% 922 | -10/Materials | Discovered new exit (range 16) 954 | -10/Materials | Entered Mines 979 | -10/Mines | A weapon hastily lodged in a ceiling crevice suddenly fell to the ground 1033 | -10/Mines | Discovered new exit (range 7) 1040 | -10/Mines | Learned location of Storage (-9) 1059 | -10/Mines | Discovered new exit (range 10) 1120 | -10/Mines | Reached level 3 1164 | -10/Mines | Learned location of Recycling (-9) 1217 | -10/Mines | Learned location of 2 exits from Materials 1273 | -10/Mines | Met a Derelict testing a Signal Generator 1275 | -10/Mines | Found Signal Generator 1285 | -10/Mines | Found a hidden stash of uninstalled traps 1374 | -10/Mines | Entered Materials 1375 | -9/Materials | Identified exit to Mines 1375 | -9/Materials | Core integrity fell below 50% 1376 | -9/Materials | Reached level 4 1465 | -9/Materials | Core integrity fell below 20% 1508 | -9/Materials | Repaired Ion Engine 1527 | -9/Materials | Upgraded with Propulsion slot (x1) 1587 | -9/Materials | Discovered new exit (range 15) 1624 | -9/Materials | Entered Mines 1648 | -9/Mines | Joined a pair of Derelicts in attacking an 0b10 outpost 1668 | -9/Mines | YI-UF0 nonchalantly dropped a Grenade Launcher on the ground 1670 | -9/Mines | Destroyed YI-UF0 1685 | -9/Mines | Found Prototype Storage 1685 | -9/Mines | Identified YI-UF0's Bottomless Matter Pit 1696 | -9/Mines | Discovered new exit (range 9) 1730 | -9/Mines | Reached level 5 1796 | -9/Mines | Discovered new exit (range 4) 1828 | -9/Mines | Deemed a non-threat by the Exiles lab entrance 1828 | -9/Mines | Discovered new exit (range 5) 1866 | -9/Mines | Entered Exiles 1874 | -9/Exiles | Met 8R-AWN 1894 | -9/Exiles | Met EX-HEX 1904 | -9/Exiles | Met EX-BIN 1905 | -9/Exiles | Build established: Sprinter 1907 | -9/Exiles | Aligned with FarCom system 1908 | -9/Exiles | Given EX-Vault access code 1915 | -9/Exiles | Opened EX-Vault 1917 | -9/Exiles | Found AWS/Gauss 1940 | -9/Exiles | Warned to stay clear of 0b10 Research branches 2000 | -9/Exiles | Attacked by the Exiles 2030 | -9/Exiles | Destroyed 8R-AWN 2033 | -9/Exiles | Found Prototype Ballistic Gun 2033 | -9/Exiles | Identified 8R-AWN's Boregun 2037 | -9/Exiles | Found Prototype Device 2037 | -9/Exiles | Identified AS-neutralizer No. 17b 2054 | -9/Exiles | Destroyed 8 combat bots 2128 | -9/Exiles | Learned location of Zion (-6) 2147 | -9/Exiles | Found Chronowheel 2241 | -9/Exiles | Discovered new exit (range 10) 2253 | -9/Exiles | Stole two prototypes: AWS/Gauss, Chronowheel 2253 | -9/Exiles | Entered Mines 2292 | -8/Mines | Discovered new exit (range 14) 2294 | -8/Mines | Discovered new exit (range 9) 2345 | -8/Mines | Reached level 6 2365 | -8/Mines | Upgraded with Power slot (x1) 2563 | -8/Mines | Entered Materials 2564 | -8/Materials | Identified exit to Factory 2565 | -8/Materials | Reached level 7 2565 | -8/Materials | Upgraded with Utility slot (x1) 2624 | -8/Materials | Core integrity fell below 50% 2645 | -8/Materials | Reached level 8 2659 | -8/Materials | Upgraded with Power slot (x1) 2805 | -8/Materials | Reached level 9 2863 | -8/Materials | Reached level 10 2869 | -8/Materials | Build established: Scavenger-Scout 2887 | -8/Materials | Destroyed 12 combat bots 3068 | -8/Materials | Garrison activated, responded to threat 3099 | -8/Materials | Reached level 11 3139 | -8/Materials | Identified exit to Garrison 3139 | -8/Materials | Entered Garrison 3166 | -8/Garrison | Triggered checkpoint 3226 | -8/Garrison | Discovered new exit (range 13) 3242 | -8/Garrison | Triggered checkpoint 3250 | -8/Garrison | Triggered checkpoint 3267 | -8/Garrison | Destroyed 11 combat bots 3285 | -8/Garrison | Discovered new exit (range 14) 3316 | -8/Garrison | Discovered new exit (range 9) 3321 | -8/Garrison | Installed Relay Interface Framework 3321 | -8/Garrison | Reached level 12 3342 | -8/Garrison | Triggered checkpoint 3398 | -8/Garrison | Triggered checkpoint 3470 | -8/Garrison | Upgraded with Utility slot (x1) 3630 | -8/Garrison | Triggered checkpoint 3704 | -8/Garrison | Triggered checkpoint 3810 | -8/Garrison | Entered Materials 3810 | -8/Materials | Accompanied by 6 allies 3829 | -8/Materials | Reached level 13 3880 | -8/Materials | Garrison activated, responded to threat 3896 | -8/Materials | Identified exit to Garrison 4048 | -8/Materials | Entered Garrison 4048 | -8/Garrison | Accompanied by 4 allies 4050 | -8/Garrison | Expanded RIF knowledge: Threat Obfuscation 4066 | -8/Garrison | Triggered checkpoint 4104 | -8/Garrison | Triggered checkpoint 4162 | -8/Garrison | Discovered exit to Factory (range 11) 4221 | -8/Garrison | Discovered exit to Factory (range 15) 4230 | -8/Garrison | Triggered checkpoint 4274 | -8/Garrison | Triggered checkpoint 4316 | -8/Garrison | Garrison Relay disabled 4396 | -8/Garrison | Entered Factory 4396 | -7/Factory | Accompanied by 3 allies 4397 | -7/Factory | Identified exit to Lower Caves 4398 | -7/Factory | Reached level 14 4398 | -7/Factory | Upgraded with Utility slot (x1) 4444 | -7/Factory | Reached level 15 4458 | -7/Factory | Upgraded with Weapon slot (x1) 4560 | -7/Factory | Garrison activated, responded to threat 4613 | -7/Factory | Discovered new exit (range 15) 4796 | -7/Factory | First assault squad dispatched 4803 | -7/Factory | Entered Lower Caves 4803 | -7/Lower Caves | Accompanied by 2 allies 4804 | -7/Lower Caves | A Derelict revealed a hidden shortcut to a safe place 4807 | -7/Lower Caves | Identified exit to Zion 4901 | -7/Lower Caves | Learned location of Extension (-5) 4922 | -7/Lower Caves | Spotted 7V-AJP(f) 4924 | -7/Lower Caves | Attracted the attention of an 0b10 base 4924 | -7/Lower Caves | Encountered a Master Thief 4927 | -7/Lower Caves | Chronowheel stolen by Master Thief 4954 | -7/Lower Caves | Reached level 16 4967 | -7/Lower Caves | Upgraded with Propulsion slot (x1) 4982 | -7/Lower Caves | Destroyed 12 combat bots 4991 | -7/Lower Caves | Learned location of 1 exit from Proximity Caves 4991 | -7/Lower Caves | Learned Factory security intel 4991 | -7/Lower Caves | Learned Armory garrison access intel 5019 | -7/Lower Caves | Spotted B-75 Beast 5044 | -7/Lower Caves | Destroyed B-75 Beast 5078 | -7/Lower Caves | Spotted TJ-E9X(f) 5079 | -7/Lower Caves | Encountered a Master Thief 5085 | -7/Lower Caves | Chronowheel stolen by Master Thief 5123 | -7/Lower Caves | Identified exit to Lower Caves 5203 | -7/Lower Caves | Spotted CP-85B(f) 5205 | -7/Lower Caves | Encountered a Master Thief 5205 | -7/Lower Caves | Destroyed CP-85B(f) 5208 | -7/Lower Caves | Spotted ZW-M20(f) 5208 | -7/Lower Caves | Destroyed ZW-M20(f) 5227 | -7/Lower Caves | Found Alien Artifact 5227 | -7/Lower Caves | Identified Core Expander 5227 | -7/Lower Caves | Installed Core Expander, added new Propulsion slot 5414 | -7/Lower Caves | Spotted IZ-L69(f) 5415 | -7/Lower Caves | Encountered a Master Thief 5415 | -7/Lower Caves | Entered another Lower Caves area 5419 | -7/Lower Caves | Learned Factory terminal intel 5499 | -7/Lower Caves | Found Alien Artifact 5499 | -7/Lower Caves | Identified Dimensional Node Initializer 5499 | -7/Lower Caves | Initialized slip node 5509 | -7/Lower Caves | Discovered new exit (range 7) 5510 | -7/Lower Caves | Identified exit to Data Miner 5513 | -7/Lower Caves | Entered Data Miner 5513 | -7/Data Miner | Discovered new exit (range 6) 5518 | -7/Data Miner | Met Data Miner 5523 | -7/Data Miner | Learned location of Section 7 (-2) 5523 | -7/Data Miner | Acquired the access code to Warlord's prototype stash 5527 | -7/Data Miner | Received God Mode back door access code from Data Miner 5529 | -7/Data Miner | Destroyed Data Miner 5531 | -7/Data Miner | Interfaced with the Data Conduit 5598 | -7/Data Miner | Found Prototype Hackware 5605 | -7/Data Miner | Identified exit to Proximity Caves 5606 | -7/Data Miner | Entered Proximity Caves 5607 | -6/Proximity Caves | Identified exit to Factory 5608 | -6/Proximity Caves | Reached level 17 5608 | -6/Proximity Caves | Upgraded with Utility slot (x1) 5608 | -6/Proximity Caves | Identified Deep Network Scanner 5624 | -6/Proximity Caves | Learned Factory emergency access door positions 5675 | -6/Proximity Caves | Destroyed 8 combat bots 5695 | -6/Proximity Caves | Spotted B-75 Beast 5717 | -6/Proximity Caves | Destroyed B-75 Beast 5730 | -6/Proximity Caves | Reached level 18 5817 | -6/Proximity Caves | Entered Factory 5820 | -6/Factory | Loaded intel: 287 machine locations 5821 | -6/Factory | Loaded intel: 19 terminal locations 5934 | -6/Factory | Fabricated Enh. Autogun (x1) 5995 | -6/Factory | Fabricated Enh. Autogun (x1) 6164 | -6/Factory | Build established: Hacker-Scout 6169 | -6/Factory | Fabricated Plasma Sword (x1) 6187 | -6/Factory | Identified exit to Lower Caves 6187 | -6/Factory | Identified exit to Factory 6215 | -6/Factory | Found Exp. Signal Interpreter 6339 | -6/Factory | Spotted B-75 Beast 6351 | -6/Factory | Destroyed B-75 Beast 6369 | -6/Factory | Identified exit to Garrison 6369 | -6/Factory | Entered Garrison 6369 | -6/Garrison | Accompanied by 1 ally 6370 | -6/Garrison | Loaded intel: 23 machine locations 6371 | -6/Garrison | Reached level 19 6371 | -6/Garrison | Upgraded with Weapon slot (x1) 6383 | -6/Garrison | Triggered checkpoint 6384 | -6/Garrison | Triggered checkpoint 6395 | -6/Garrison | Triggered checkpoint 6416 | -6/Garrison | Triggered checkpoint 6497 | -6/Garrison | Destroyed 13 combat bots 6504 | -6/Garrison | Discovered new exit (range 12) 6507 | -6/Garrison | Identified exit to Factory 6509 | -6/Garrison | Expanded RIF knowledge: Structural Interface 6510 | -6/Garrison | Entered Factory 6511 | -6/Factory | Loaded intel: 249 machine locations 6586 | -6/Factory | Fabricated Enh. Autogun (x1) 6647 | -6/Factory | Identified exit to Garrison 6647 | -6/Factory | Entered Garrison 6648 | -6/Garrison | Loaded intel: 18 machine locations 6670 | -6/Garrison | Triggered checkpoint 6703 | -6/Garrison | Discovered exit to Factory (range 10) 6706 | -6/Garrison | Expanded RIF knowledge: Hotswap 6707 | -6/Garrison | Entered Factory 6708 | -5/Factory | Loaded intel: 266 machine locations 6709 | -5/Factory | Reached level 20 6719 | -5/Factory | Identified exit to Upper Caves 6719 | -5/Factory | Identified exit to Extension 6729 | -5/Factory | Central database locked down 6853 | -5/Factory | Fabricated Exp. Weapon Shielding (x1) 6867 | -5/Factory | Entered Extension 6868 | -5/Extension | Loaded intel: 36 machine locations 6869 | -5/Extension | Reached level 21 6887 | -5/Extension | Rescued a captive Derelict 6887 | -5/Extension | Rescued a captive Derelict 6921 | -5/Extension | Central database locked down 6927 | -5/Extension | Rescued a captive Derelict 6928 | -5/Extension | Rescued a captive Derelict 6969 | -5/Extension | Rescued a captive Derelict 6974 | -5/Extension | Spotted B-75 Beast 6977 | -5/Extension | Spotted B-75 Beast 6990 | -5/Extension | Destroyed B-75 Beast 6998 | -5/Extension | Destroyed B-75 Beast 7038 | -5/Extension | Rescued a captive Derelict 7114 | -5/Extension | Rescued A7 7135 | -5/Extension | Rescued a captive Derelict 7136 | -5/Extension | Rescued a captive Derelict 7188 | -5/Extension | Reached level 22 7191 | -5/Extension | Upgraded with Utility slot (x1) 7197 | -5/Extension | Rescued a captive Derelict 7198 | -5/Extension | Rescued a captive Derelict 7240 | -5/Extension | Discovered new exit (range 10) 7240 | -5/Extension | Discovered new exit (range 6) 7241 | -5/Extension | Identified exit to Cetus 7286 | -5/Extension | Entered Cetus 7286 | -5/Cetus | Accompanied by 14 allies (A7) 7287 | -5/Cetus | Loaded intel: 24 machine locations 7291 | -5/Cetus | Acquired a Cetus Manufacturing Module code from A7 7291 | -5/Cetus | Spotted Cetus Guard 7291 | -5/Cetus | Spotted Cetus Guard 7292 | -5/Cetus | Spotted Cetus Guard 7296 | -5/Cetus | Spotted Cetus Guard 7304 | -5/Cetus | Destroyed Cetus Guard 7308 | -5/Cetus | Destroyed Cetus Guard 7308 | -5/Cetus | Destroyed Cetus Guard 7335 | -5/Cetus | Started Cetus Manufacturing Module 7350 | -5/Cetus | Escorted A7 to Cetus Mainframe 7360 | -5/Cetus | Manufactured an Enhanced Grunt 7385 | -5/Cetus | Manufactured an Enhanced Grunt 7400 | -5/Cetus | Discovered new exit (range 20) 7410 | -5/Cetus | Manufactured an Enhanced Grunt 7435 | -5/Cetus | Manufactured an Enhanced Grunt 7460 | -5/Cetus | Manufactured an Enhanced Grunt 7511 | -5/Cetus | Identified exit to Archives 7537 | -5/Cetus | Spotted Cetus Guard 7537 | -5/Cetus | Spotted Cetus Guard 7538 | -5/Cetus | Spotted Cetus Guard 7539 | -5/Cetus | Destroyed Cetus Guard 7541 | -5/Cetus | Spotted Cetus Guard 7544 | -5/Cetus | Discovered new exit (range 18) 7546 | -5/Cetus | Destroyed Cetus Guard 7548 | -5/Cetus | Destroyed Cetus Guard 7550 | -5/Cetus | Allies destroyed Cetus Guard 7552 | -5/Cetus | Met Revision 17 7624 | -5/Cetus | Entered Archives 7624 | -5/Archives | Accompanied by 16 allies (A7) 7625 | -5/Archives | Loaded intel: 8 machine locations 7626 | -5/Archives | Reached level 23 7626 | -5/Archives | Upgraded with Utility slot (x1) 7629 | -5/Archives | Received a hacking code to weaken MAIN.C 7631 | -5/Archives | Discovered new exit (range 20) 7636 | -5/Archives | Unable to access archive contents 7643 | -5/Archives | Discovered new exit (range 15) 7650 | -5/Archives | Identified exit to Hub_04(d) 7711 | -5/Archives | Entered Hub_04(d) 7711 | -5/Hub_04(d) | Accompanied by 15 allies 7712 | -5/Hub_04(d) | Loaded intel: 94 machine locations 7723 | -5/Hub_04(d) | Build established: Commander-Scout 7867 | -5/Hub_04(d) | Discovered new exit (range 6) 7891 | -5/Hub_04(d) | Discovered new exit (range 3) 7895 | -5/Hub_04(d) | Identified exit to Factory 7944 | -5/Hub_04(d) | Network Hub disabled 7944 | -5/Hub_04(d) | Reached level 24 7993 | -5/Hub_04(d) | Spotted Lightning 7996 | -5/Hub_04(d) | Garrison activated, responded to threat 8010 | -5/Hub_04(d) | System corruption reached 10% 8011 | -5/Hub_04(d) | Destroyed Lightning 8012 | -5/Hub_04(d) | Discovered exit to Factory (range 11) 8013 | -5/Hub_04(d) | Spotted Lightning 8013 | -5/Hub_04(d) | Spotted Lightning 8014 | -5/Hub_04(d) | Found EM Dispersion Field 8018 | -5/Hub_04(d) | Identified exit to Garrison 8020 | -5/Hub_04(d) | Network Hub disabled 8020 | -5/Hub_04(d) | Network Hub disabled 8022 | -5/Hub_04(d) | Spotted Lightning 8022 | -5/Hub_04(d) | Spotted Lightning 8024 | -5/Hub_04(d) | Spotted Lightning 8028 | -5/Hub_04(d) | Entered Factory 8029 | -4/Factory | Loaded intel: 247 machine locations 8050 | -4/Factory | Spotted B-86 Titan 8060 | -4/Factory | Identified exit to Upper Caves 8104 | -4/Factory | Entered Upper Caves 8141 | -4/Upper Caves | Learned Research stockpile data 8195 | -4/Upper Caves | Core integrity fell below 50% 8243 | -4/Upper Caves | Reached level 25 8275 | -4/Upper Caves | Attracted the attention of an 0b10 checkpoint 8307 | -4/Upper Caves | Learned Research stockpile data 8308 | -4/Upper Caves | Spotted N1-JIQ(f) 8309 | -4/Upper Caves | Encountered a Master Thief 8324 | -4/Upper Caves | Kinecellerator stolen by Master Thief 8364 | -4/Upper Caves | Discovered new exit (range 19) 8371 | -4/Upper Caves | Identified exit to Upper Caves 8371 | -4/Upper Caves | Entered another Upper Caves area 8387 | -4/Upper Caves | Discovered new exit (range 13) 8392 | -4/Upper Caves | Learned Extension trap positions 8392 | -4/Upper Caves | Learned Armory stockpile data 8392 | -4/Upper Caves | Learned Factory security intel 8392 | -4/Upper Caves | Learned Research security intel 8392 | -4/Upper Caves | Learned Factory terminal intel 8419 | -4/Upper Caves | Build established: Scavenger-Scout 8467 | -4/Upper Caves | Discovered new exit (range 8) 8469 | -4/Upper Caves | Identified exit to Zhirov 8469 | -4/Upper Caves | Entered Zhirov 8469 | -4/Zhirov | Discovered new exit (range 3) 8474 | -4/Zhirov | Met Zhirov 8484 | -4/Zhirov | Zhirov requested help retrieving the SGEMP Prototype 8488 | -4/Zhirov | Found Alien Artifact 8488 | -4/Zhirov | Identified Integrated Dissipator 8488 | -4/Zhirov | Installed Integrated Dissipator, increased core heat dissipation (+20) 8493 | -4/Zhirov | Found Alien Artifact 8597 | -4/Zhirov | Cloak Generator disabled 8597 | -4/Zhirov | Attacked by Zhirov 8610 | -4/Zhirov | Destroyed Svarog 8621 | -4/Zhirov | Found Prototype Hackware 8621 | -4/Zhirov | Identified Quantum Router 8624 | -4/Zhirov | Found Alien Artifact 8624 | -4/Zhirov | Identified Transdimensional Reconstructor (x2) 8624 | -4/Zhirov | Warped through subspace 8625 | -4/Zhirov | Zhirov detonated his lab 8656 | -4/Zhirov | Identified exit to Proximity Caves 8656 | -4/Zhirov | Entered Proximity Caves 8658 | -3/Proximity Caves | Reached level 26 8665 | -3/Proximity Caves | Spotted B-86 Titan 8679 | -3/Proximity Caves | Destroyed B-86 Titan 8719 | -3/Proximity Caves | Discovered new exit (range 13) 8722 | -3/Proximity Caves | Identified exit to Research 8723 | -3/Proximity Caves | Entered Research 8725 | -3/Research | Reached level 27 8726 | -3/Research | Loaded intel: 101 machine locations 8843 | -3/Research | Destroyed 9 combat bots 8858 | -3/Research | Discovered new exit (range 11) 8860 | -3/Research | Identified exit to Testing 8923 | -3/Research | Revision forces began assault on 0b10 8935 | -3/Research | Build established: Hacker-Sprinter 8948 | -3/Research | Fabricated Enh. Autogun (x1) 8997 | -3/Research | Identified exit to Armory 9048 | -3/Research | Met up with Revision 17++ 9159 | -3/Research | Intercept squad dispatched 9184 | -3/Research | Spotted Tracker 9188 | -3/Research | Reached level 28 9188 | -3/Research | Destroyed Tracker 9189 | -3/Research | Spotted Tracker 9199 | -3/Research | Destroyed Tracker 9247 | -3/Research | Spotted Combat Programmer 9250 | -3/Research | Destroyed Combat Programmer 9266 | -3/Research | Spotted B-86 Titan 9301 | -3/Research | Spotted Combat Programmer 9312 | -3/Research | Combat Programmer assimilated allied Revision 9335 | -3/Research | Intercept squad dispatched 9360 | -3/Research | Spotted Tracker 9372 | -3/Research | Destroyed Tracker 9388 | -3/Research | Spotted Combat Programmer 9405 | -3/Research | Upgraded with Weapon slot (x1) 9423 | -3/Research | Research terminal network offline 9467 | -3/Research | Entered Armory 9469 | -3/Armory | Loaded intel: 82 machine locations 9632 | -3/Armory | Found Tactical Quantum Warhead 9654 | -3/Armory | Warped through subspace to slip node 9654 | -3/Armory | Discovered new exit (range 1) 9654 | -3/Armory | Identified exit to Lab 9657 | -3/Armory | Entered Lab 9657 | -3/Lab | Discovered new exit (range 9) 9659 | -3/Lab | Reached level 29 9659 | -3/Lab | Identified exit to Research 9660 | -3/Lab | Hidden lab's door opened automatically 9660 | -3/Lab | Sensor layout match revealed 9660 | -3/Lab | Decrypted terminal 9660 | -3/Lab | Opened the door to a hidden lab 9661 | -3/Lab | Gained access to the hidden lab's interior 9661 | -3/Lab | Decrypted terminal 9662 | -3/Lab | Detected by scanners 9671 | -3/Lab | Confronted by A5 9691 | -3/Lab | Destroyed A5 9715 | -3/Lab | Found Prototype Energy Cannon 9715 | -3/Lab | Identified Warp Cannon 9718 | -3/Lab | Upgraded with Weapon slot (x1) 9733 | -3/Lab | Found Integrated Dissipator 9733 | -3/Lab | Installed Integrated Dissipator, increased core heat dissipation (+20) 9735 | -3/Lab | Found Alien Artifact 9735 | -3/Lab | Identified Core Regenerator 9735 | -3/Lab | Used Core Regenerator, restored core integrity (+66) 9741 | -3/Lab | Found Transdimensional Reconstructor 9751 | -3/Lab | Decrypted terminal 9751 | -3/Lab | Acquired modification code for an L2 power cell 9758 | -3/Lab | Found Prototype Special Weapon 9759 | -3/Lab | Identified Gui. Remote Datajack 9767 | -3/Lab | Found Prototype Device 9767 | -3/Lab | Identified AEGIS Remote Shield 9777 | -3/Lab | Found Exp. Hacking Suite 9780 | -3/Lab | Entered Research 9782 | -2/Research | Loaded intel: 125 machine locations 9782 | -2/Research | Reached level 30 9892 | -2/Research | Upgraded with Propulsion slot (x1) 9925 | -2/Research | Intercept squad dispatched 9926 | -2/Research | Identified exit to Quarantine 9926 | -2/Research | Identified exit to Access 9931 | -2/Research | Entered Access 9932 | -1/Access | Loaded intel: 112 machine locations 9933 | -1/Access | Reached level 31 9933 | -1/Access | Reached level 32 10033 | -1/Access | Identified exit to Command 10047 | -1/Access | Spotted B-99 Colossus 10063 | -1/Access | Garrison activated, responded to threat 10168 | -1/Access | Destroyed 12 combat bots 10181 | -1/Access | First assault squad dispatched 10208 | -1/Access | Intercept squad dispatched 10236 | -1/Access | Spotted Tracker 10237 | -1/Access | Spotted Tracker 10240 | -1/Access | Destroyed Tracker 10245 | -1/Access | Reached level 33 10245 | -1/Access | Destroyed Tracker 10254 | -1/Access | Spotted Combat Programmer 10258 | -1/Access | Destroyed Combat Programmer 10262 | -1/Access | Spotted Combat Programmer 10271 | -1/Access | Destroyed Combat Programmer 10290 | -1/Access | Upgraded with Weapon slot (x2) 10304 | -1/Access | Destroyed 11 combat bots 10343 | -1/Access | Spotted B-99 Colossus 10343 | -1/Access | Spotted B-99 Colossus 10401 | -1/Access | Intercept squad dispatched 10410 | -1/Access | Core integrity fell below 50% 10431 | -1/Access | Spotted Tracker 10432 | -1/Access | Spotted Tracker 10432 | -1/Access | Spotted Tracker 10436 | -1/Access | Destroyed Tracker 10437 | -1/Access | Core integrity fell below 20% 10437 | -1/Access | Destroyed Tracker 10438 | -1/Access | Destroyed Tracker 10456 | -1/Access | Spotted Combat Programmer 10458 | -1/Access | Destroyed Combat Programmer 10464 | -1/Access | Spotted Combat Programmer 10465 | -1/Access | Spotted Combat Programmer 10468 | -1/Access | Destroyed Combat Programmer 10475 | -1/Access | Destroyed Combat Programmer 10496 | -1/Access | Destroyed 10 combat bots 10554 | -1/Access | Reached level 34 10554 | -1/Access | Destroyed B-99 Colossus 10583 | -1/Access | Entered Command 10584 | -1/Command | Loaded intel: 54 machine locations 10706 | -1/Command | Spotted Alpha 7 10706 | -1/Command | Spotted Alpha 7 10706 | -1/Command | Spotted Striker 10706 | -1/Command | Spotted Striker 10706 | -1/Command | Spotted Executioner 10706 | -1/Command | Spotted Executioner 10706 | -1/Command | Spotted Executioner 10706 | -1/Command | Spotted Executioner 10721 | -1/Command | Destroyed Striker 10776 | -1/Command | Reached level 35 10795 | -1/Command | Destroyed Executioner 10816 | -1/Command | Destroyed 8 combat bots 10829 | -1/Command | Destroyed Alpha 7 10833 | -1/Command | First assault squad dispatched 10849 | -1/Command | Found Prototype Ballistic Gun 10849 | -1/Command | Identified Multirail 10948 | -1/Command | Spotted B-99 Colossus 10966 | -1/Command | Destroyed B-99 Colossus 11012 | -1/Command | Found Hvy. Insulated Plating 11030 | -1/Command | Spotted M Guard 11031 | -1/Command | Spotted M Guard 11031 | -1/Command | Spotted Combat Programmer 11032 | -1/Command | Spotted Combat Programmer 11045 | -1/Command | Destroyed M Guard 11058 | -1/Command | Destroyed M Guard 11062 | -1/Command | Destroyed Combat Programmer 11064 | -1/Command | Destroyed Combat Programmer 11064 | -1/Command | Destroyed all MAIN.C guards 11085 | -1/Command | Found Prototype Energy Cannon 11085 | -1/Command | Identified Cld. Nova Cannon 11163 | -1/Command | Met MAIN.C 11163 | -1/Command | 0b10 Conduit disabled 11180 | -1/Command | Reached level 36 11180 | -1/Command | Destroyed MAIN.C Shell 11181 | -1/Command | Surrendered to MAIN.C 11181 | -1/Command | Loaded intel: 53 machine locations 11181 | -1/Command | Loaded intel: 112 trap records 11181 | -1/Command | Identified exit to Surface 11181 | -1/Command | Discovered exit to Surface (range 47) 11181 | -1/Command | Discovered exit to Surface (range 98) 11187 | -1/Command | Found Prototype Energy Cannon 11187 | -1/Command | Identified Hpw. Disruptor Cannon 11221 | -1/Command | MAIN.C activated Command garrisons 11225 | -1/Command | Found Prototype Ballistic Gun 11225 | -1/Command | Identified Hyp. Multirail 11243 | -1/Command | Found Spectral Analyzer 11246 | -1/Command | Found Exp. Target Analyzer 11249 | -1/Command | Found Exp. Targeting Computer 11254 | -1/Command | Found Hyp. Multirail 11264 | -1/Command | Unknown forces attacked Command 11264 | -1/Command | Spotted EQ-002 11266 | -1/Command | Spotted EQ-000 11279 | -1/Command | Spotted EQ-001 11281 | -1/Command | Destroyed EQ-000 11292 | -1/Command | Destroyed EQ-002 11299 | -1/Command | Destroyed EQ-001 11356 | -1/Command | Spotted EQ-018 11358 | -1/Command | Spotted EQ-026 11383 | -1/Command | Spotted EQ-019 11394 | -1/Command | Destroyed EQ-019 11459 | -1/Command | Spotted EQ-044 11459 | -1/Command | Spotted EQ-042 11459 | -1/Command | Spotted EQ-039 11459 | -1/Command | Spotted EQ-050 11463 | -1/Command | System corruption reached 10% 11464 | -1/Command | Spotted EQ-038 11469 | -1/Command | Destroyed EQ-018 11471 | -1/Command | Destroyed EQ-044 11475 | -1/Command | Destroyed EQ-038 11505 | -1/Command | Spotted EQ-053 11519 | -1/Command | Build established: Scavenger-Executioner 11521 | -1/Command | Destroyed EQ-053 11569 | -1/Command | Spotted EQ-068 11569 | -1/Command | Spotted EQ-062 11569 | -1/Command | Spotted EQ-076 11569 | -1/Command | Spotted EQ-061 11569 | -1/Command | Spotted EQ-060 11569 | -1/Command | Spotted EQ-078 11581 | -1/Command | Destroyed EQ-062 11584 | -1/Command | Destroyed by EQ-061 with Graviton Cannon Last Messages --------------- EQ-062 destroyed. Switching to secondary target: EQ-061. EQ-061 suffers critical hit. Destroyed Com. HERF Cannon. HV Slug penetrates EQ-061. EQ-061 suffers critical hit. Destroyed Adv. Kinecellerator. HV Slug penetrates EQ-061. EQ-061 suffers critical hit. HV Slug penetrates EQ-061. HV Slug penetrates 0b10 Conduit. EQ-068 knocked back. Slug penetrates EQ-078. EQ-078 destroyed. Slug penetrates MAIN.C. Slug penetrates EQ-061. B-74 Champion suffers critical hit. B-74 Champion destroyed. Fusion Bomb intercepted. PPAFRNPKW8DX5AIY HDPW6 Map ----- +----------------------------------------------------+ | #######???#!! !===#????????????????????????#?#?# | | + #???#]][[=[=#????????????????????????#?#?# | | ##### #???#] []][=#????????????????????????#?#?# | | #???# #???#########????????????????????????#?#?# | | #???# #????????????????????????????????????#?#?# | | #???# #????????????????????????????????????#?#?# | | #???# #????????????????????????????????????#?#?# | | #+##### #????????????????????????????????????#?#?# | | = ##+#####????????????????????????????????#?#?# | | # #????????????????????????????????#?#?# | | # #????????????????????????????????#?#?# | | # #????????????????????????????????#?#?# | | ]# #????????????????????????????????#?#?# | | "#+### #????????????????????????????????#?#?# | | [%[ # #????????????????????????????????#?#?# | | =[! + #????????????????????????????????#?#?# | | #"""+# #?###########################????#?#?# | | # " #?#?????????????????????????#????#?#?# | | # / #?#?#######################?#????#?#?# | | # # #?#?#""""""" " % ############ | | #] # #?#?#"" "" #?#????????? | | # !# #?#?#""""" " !%[############ | | #] ########?#?#"""" ! =!=E*! ? | | # #????????#?#" !%! % [!*%x!g | | # ! #????????###"" !] % =|[[ *%%[/s[% ? ? | | + #????????# ; @ %%=*! !=b=############ | | ######????????#?# % ! % !!==!* %!%#?#????????? | | ??????????????#?# = % Q !=%!i !=############ | | ??????????????#?# = %[ M=!=!! ""#?#????#?#?# | | ??????????????#?# ! % % % """#?#????#?#?# | | ??????????????#?# =%][% " ""#?#????#?#?# | | ??????????????#?# ==! """""#?#????#?#?# | | #?????????????#?# Q *! = #?#????#?#?# | | #???????????##### Q " #?#????#?#?# | | #?????###???#!=[![ %! "" " #?#????#?#?# | | ####*##[###"#!!%=[ % " "" #?#????#?#?# | | !*!%! !%=|=%%"!![ " #?#????#?#?# | | !!=*%############ b " #?#????#?#?# | | #+#########???##; " " """#?#????#?#?# | | #???### l " " #?#????#?#?# | | #???#?#######################?#????#?#?# | | #???#?????????????????????????#????#?#?# | | #???###########################????#?#?# | | #??????????????????????????????????#?#?# | | !! #??????????????????????????????????#?#?# | | !! #??????????????????????????????????#?#?# | | #??????????????????????????????????#?#?# | | #??????????????????????????????????#?#?# | | #??????????????????????????????????#?#?# | | #??????????????????????????????????#?#?# | +----------------------------------------------------+ Best States ------------- Heat Dissipation 204 Energy Generation 74 Energy Capacity 1590 Matter Stores 918 Matter Capacity 1800 Sight Range 25 Robot Scan Range 28 Terrain Scan Range 20 Terrain Scan Density 510 Additional Mass Support 32 Armor Coverage 225 Resistance: KI 15 Resistance: TH 15 Resistance: EM 75 Propulsion Shielding 66 Weapon Shielding 90 Point Defense Rating 160 Evasion (%) 65 Targeting Accuracy 12 Target Analysis 12 Core Analysis 10 Armor Integrity Analysis 66 Recoil Reduction 4 Matter Filtering 50 Kinecelleration 30 Offensive Hacking 35 Defensive Hacking 30 Relay Coupler Types 102 Relay Coupler Value 2 Item Schematics ----------------- Enh. Autogun | -7/Factory | Scanalyzed Combat Drone Bay | -7/Data Miner | Free Lgt. Regenerative Plating | -7/Data Miner | Free Triangulator | -7/Data Miner | Free Exp. Terrain Scan Processor | -7/Data Miner | Free Exp. ECM Suite | -7/Data Miner | Free Plasma Sword | -7/Data Miner | Free Nanoactuators | -6/Factory | Hacked Exp. Weapon Shielding | -5/Factory | Hacked Exp. Power Shielding | -5/Extension | Hacked Assault Drone Bay | -4/Zhirov | Free Exp. Heat Sink | -4/Zhirov | Free Exp. Optical Array | -4/Zhirov | Free Imp. Arc Thrower | -4/Zhirov | Free Robot Schematics ------------------ S-27 Virus | -7/Data Miner | Free G-50 Soldier | -7/Data Miner | Free G-67 Veteran | -7/Data Miner | Free L-41 Fighter | -7/Data Miner | Free I-36 Angel | -7/Data Miner | Free Fabricated ------------ Enh. Autogun | x1 | -6/Factory Enh. Autogun | x1 | -6/Factory Plasma Sword | x1 | -6/Factory Enh. Autogun | x1 | -6/Factory Exp. Weapon Shielding | x1 | -5/Factory Enh. Autogun | x1 | -3/Research Alien Tech Used ----------------- Core Expander Dimensional Node Initializer Integrated Dissipator Transdimensional Reconstructor Core Regenerator Achievements -------------- Exposed Great Explorer Revolutionary Research Challenges ------------ None RPGLIKE | -11 -10 -10 -9 -9 -9 -8 -8 -8 -8 -8 -7 -7 -7 -7 -6 -6 -6 -6 -6 -5 -5 -5 -5 -5 -4 -4 -4 -4 -3 -3 -3 -3 -2 -1 -1 --------- Run | Scr Mat Min Mat Min Exi Min Mat Gar Mat Gar Fac Low Low Dat Pro Fac Gar Fac Gar Fac Ext Cet Arc Hub Fac Upp Upp Zhi Pro Res Arm Lab Res Acc Com Levels Raised 35 | . 1 1 1 1 . 1 5 1 1 . 2 1 . . 2 . 1 . . 1 2 . 1 1 . 1 . . 1 2 . 1 1 4 2 XP Earned 55871 | 3000 2470 850 1800 1200 350 1800 6737 2523 927 698 2536 990 209 758 1775 1186 727 164 230 2063 1592 1283 334 1608 747 572 300 220 1080 2953 624 1746 1787 4710 3322 XP Spent 55285 | 140 4280 1300 1300 1530 300 1450 3195 5750 1000 . 3525 1300 . . 3330 . 1400 . . 1450 2000 . 2300 . . 2885 . . . 3600 . 2000 1400 6830 3020 Upgrades 117 | 2 17 4 2 7 2 4 15 8 1 . 6 2 . . 5 . 1 . . 5 1 . 1 . . 10 . . . 3 . 1 1 10 9 Power Slot 2 | . . . . . . 1 1 . . . . . . . . . . . . . . . . . . . . . . . . . . . . Propulsion Slot 4 | . 1 . 1 . . . . . . . . 1 . . . . . . . . . . . . . . . . . . . . 1 . . Utility Slot 7 | . 1 . . . . . 1 1 . . 1 . . . 1 . . . . . 1 . 1 . . . . . . . . . . . . Weapon Slot 8 | . 2 . . . . . . . . . 1 . . . . . 1 . . . . . . . . . . . . 1 . 1 . 2 . Core Integrity 26 | . 8 . . 4 2 . . . . . . . . . . . . . . . . . . . . . . . . . . . . 4 8 Heat Dissipation 18 | . . . . . . 1 6 . . . . . . . 3 . . . . 5 . . . . . . . . . . . . . 3 . Energy Generation 1 | . . . . . . 1 . . . . . . . . . . . . . . . . . . . . . . . . . . . . . Mass Support 3 | . 1 . . . . 1 . . . . . . . . . . . . . . . . . . . . . . . . . . . . 1 Inventory Capacity 4 | . . 1 1 . . . . 1 . . . . . . 1 . . . . . . . . . . . . . . . . . . . . Sight Range 1 | . . . . . . . . . . . . . . . . . . . . . . . . . . . . . . . . . . 1 . Sensor Range 14 | . . . . . . . 7 . . . 1 . . . . . . . . . . . . . . 6 . . . . . . . . . Terrain Scan Density 5 | 2 . . . . . . . . . . . . . . . . . . . . . . . . . 3 . . . . . . . . . Ranged Accuracy 7 | . . . . . . . . 6 1 . . . . . . . . . . . . . . . . . . . . . . . . . . Melee Accuracy 4 | . 4 . . . . . . . . . . . . . . . . . . . . . . . . . . . . . . . . . . Hack Attack % 2 | . . . . . . . . . . . 2 . . . . . . . . . . . . . . . . . . . . . . . . Hack Defense % 1 | . . . . . . . . . . . 1 . . . . . . . . . . . . . . . . . . . . . . . . KI Resistance % 3 | . . 3 . . . . . . . . . . . . . . . . . . . . . . . . . . . . . . . . . TH Resistance % 3 | . . . . 3 . . . . . . . . . . . . . . . . . . . . . . . . . . . . . . . KI Damage % 4 | . . . . . . . . . . . . 1 . . . . . . . . . . . . . 1 . . . 2 . . . . . Protomatter Created 7840 | . 85 22 . 166 4 116 584 322 223 177 380 222 . 83 300 247 397 158 164 142 141 215 . 496 . 348 45 81 82 489 . 54 161 946 990 Integrity Restored 15935 | . 276 66 . 636 . 348 1510 584 265 193 302 666 . 249 883 430 429 76 98 123 650 372 41 424 . 944 . 233 246 1395 . 162 250 1214 2870 Core 12131 | . 276 66 . 636 . 348 1322 317 145 139 218 666 . 249 525 241 269 53 67 123 331 142 3 215 . 744 . 227 246 780 . 162 93 1164 2364 Parts 3804 | . . . . . . . 188 267 120 54 84 . . . 358 189 160 23 31 . 319 230 38 209 . 200 . 6 . 615 . . 157 50 506 Protomatter Decayed 10557 | . . . . . . . 71 203 237 165 312 43 . . . 72 249 57 . . 112 162 73 306 . . 45 74 . 1598 . . 71 535 6172 Game ------ Seed MyomerBiometalFemtoactuators Manual? 0 Play Time 03:52:29 Cumulative 254.9 hours Start 2020.09.15 @ 04:35:54 End 2020.09.15 @ 09:13:26 Sessions 1 Manual Loads 0 Difficulty Rogue Special Mode Winter2019/RPGLIKE Game No. 257 Rogue 257 Adventurer 0 Explorer 0 Win Type - Total 13 Types 9/0/3/1/0/0/0/0/0 Lore% 80 Gallery% 88 Achievement% 71 Wizard Run 0 Options --------- ASCII 0 Keyboard 1 Movement Numpad Keybinds 0 Fullscreen 1 Font 18/SmallcapsGlow Map View 76x50 Tactical HUD 1 Map Filters NONE Filters NONE Steam 1 RUN: aa470bfa-dbba-4a7f-b83c-b6e3da9a446b